Cogmind - Beta 16 X2 @@@ ROGUE MODE // 2025.10.13 @ 17:26:47 Player: Cogchaaaan Result: Escaped singularity! Performance ------------- Evolutions (9) 4500 Regions Visited (31) 6200 Robots Destroyed (392) 1960 Value Destroyed (20366) 20366 Prototype IDs (373) 7460 Alien Tech Used (8) 1600 Bonus (65914) 65914 TOTAL SCORE: 108000 Bonus ------- Triggered High Security 500 High Alert Combat Kills 6893 Follower Combat Kills 458 Destroyed Unchained 1000 Registered with UFD 300 Met Optimus in HQ 500 Met Imprinter 300 Met Zhirov 300 Met Warlord at Base 500 MAIN.C Attacked Warlord 500 Warlord Defense Kills 2272 Acquired SGEMP 2000 Destroyed Superfortress 15000 Met Optimus at Protoforge 1000 Delivered SGEMP 2000 Destroyed MAIN.C Guards 500 Met MAIN.C 5000 Destroyed MAIN.C Shell 5000 Zhirov Destroyed MAIN.C 3000 Met Architect 300 Destroyed A8 300 Destroyed A6 400 Destroyed Architect 15000 Win 3000 Friendly Fire -109 Cogmind --------- Core Integrity 903/1600 Matter 280/300 Energy 452/460 System Corruption 10% Temperature Cool (9) Movement Hovering (24) Location Near Former Tau Ceti IV Parts ------- > --- POWER (3) -------- Concept Zero-point Core Concept Zero-point Core Concept Zero-point Core > --- PROPULSION (9) --- Cooled Antigrav System Cooled Linear Gravjet Experimental Antigrav System Experimental Antigrav System Concept Combat Aerolev Unit Concept Combat Aerolev Unit Concept Combat Aerolev Unit Concept Gyrokinetic System Concept Gyrokinetic System > --- UTILITY (11) ----- Concept Antigrav Storage Unit Spectral Analyzer Concept Weapon Articulator Experimental Target Analyzer Experimental Core Analyzer Femtoactuators SHELL Armor Graphene Brace Experimental Force Field > --- WEAPON (3) ------- Concept Blasthammer Experimental Jetlance > --- INVENTORY (25) --- Light Quantum Reactor Cooled Linear Gravjet Cooled Linear Gravjet Cooled Linear Gravjet Concept Thermoelectric Network Concept NT7 Matterbank (750) Concept Weapon Articulator Experimental Powered Armor Thermal Barrier Advanced Force Field Concept Matter Streamer Concept Impact Drone Bay (1/6) High-powered Transdimensional Reconstructor Core Regenerator Compact HERF Cannon Concept Plasma Driver Omega Cannon Peak State ------------ > --- POWER ------------ Concept Zero-point Core Concept Zero-point Core Concept Zero-point Core > --- PROPULSION ------- Cooled Antigrav System Cooled Antigrav System Cooled Antigrav System Experimental Antigrav System Experimental Antigrav System Concept Combat Aerolev Unit Concept Combat Aerolev Unit Concept Combat Aerolev Unit Concept Gyrokinetic System > --- UTILITY ---------- Concept Antigrav Storage Unit Spectral Analyzer Concept Weapon Articulator Experimental Core Analyzer Experimental Reaction Control System Concept Cloak Mesh SHELL Armor Experimental Force Field Concept Network Penetrator > --- WEAPON ----------- Concept Miniperforator Concept Blasthammer Experimental Jetlance > --- INVENTORY -------- Light Quantum Reactor Concept Zero-point Core Combat Linear Gravjet Experimental Antigrav System Concept Combat Aerolev Unit Concept Gyrokinetic System Concept Thermoelectric Network Concept NT7 Matterbank Concept Weapon Articulator Femtoactuators Femtoactuators Concept Reaction Jets Advanced Phase Shifter Advanced Phase Shifter Graphene Brace Experimental Force Field Concept Antimissile System Concept Matter Streamer Concept Impact Drone Bay Transdimensional Reconstructor Compact HERF Cannon Concept Plasma Driver Hypervelocity Railgun Long-range Missile Launcher Experimental Jetlance [Rating: 308] Favorites ----------- Power Concept Zero-point Core Engine Improved Ion Engine Power Core Concept Zero-point Core Reactor Micro Antimatter Reactor Propulsion Light Treads Treads Light Treads Leg Aluminum Leg Wheel Compact Wheel Hover Unit Concept Combat Aerolev Unit Flight Unit Improved Flight Unit Utility Huge Storage Unit Device Experimental Reaction Control System Storage Huge Storage Unit Processor Experimental Core Analyzer Hackware Advanced System Shield Protection Medium Armor Plating Weapon Improved Assault Rifle Energy Gun Backup Laser III Energy Cannon Concept Plasma Driver Ballistic Gun Improved Assault Rifle Ballistic Cannon Concept Miniperforator Launcher Long-range Missile Launcher Special Weapon Improved Plasma Cutter Impact Weapon Shock Maul Slashing Weapon Sigix Broadsword Piercing Weapon Experimental Jetlance Build | -11 -10 -10 -9 -9 -9 -9 -6 -6 -6 -6 -6 -6 -5 -5 -5 -5 -5 -4 -4 -4 -4 -4 -3 -3 -3 -3 -2 -2 -1 -1 -1 ------- Run | Yrd Mat Min Mat Sto Rec Scr Fac Was Fac Low Low Zio Pro Fac Upp Upp Zhi Pro Fac Upp Upp War Pro Res Qua Frg Res Tes Acc Com Ac0 Slots Evolved 18 | . . . 2 . . . 6 . . . . . . 2 . . . . 2 . . . . 2 . . 2 . 2 . . Power 1 | . . . . . . . . . . . . . . . . . . . . . . . . . . . 1 . . . . Propulsion 7 | . . . 1 . . . 2 . . . . . . . . . . . 1 . . . . 2 . . . . 1 . . Utility 9 | . . . . . . . 4 . . . . . . 2 . . . . 1 . . . . . . . 1 . 1 . . Weapon 1 | . . . 1 . . . . . . . . . . . . . . . . . . . . . . . . . . . . Parts Attached 169 | 7 6 7 19 9 . 3 10 . 2 1 1 . . 6 . . . 2 4 . 1 7 . 2 3 46 5 5 5 6 12 Power 16 | 1 1 1 3 . . 1 . . . . . . . . . . . 1 . . . . . 1 . 4 1 . . 2 . Engine 6 | 1 1 1 3 . . . . . . . . . . . . . . . . . . . . . . . . . . . . Core 7 | . . . . . . 1 . . . . . . . . . . . 1 . . . . . . . 3 1 . . 1 . Reactor 3 | . . . . . . . . . . . . . . . . . . . . . . . . 1 . 1 . . . 1 . Propulsion 51 | 2 . 6 9 4 . 1 4 . . . . . . 1 . . . . 1 . . 3 . . . 13 . 1 . . 6 Treads 15 | . . 3 8 4 . . . . . . . . . . . . . . . . . . . . . . . . . . . Leg 5 | 2 . 3 . . . . . . . . . . . . . . . . . . . . . . . . . . . . . Wheel 1 | . . . . . . 1 . . . . . . . . . . . . . . . . . . . . . . . . . Hover 15 | . . . . . . . . . . . . . . . . . . . . . . . . . . 8 . 1 . . 6 Flight 15 | . . . 1 . . . 4 . . . . . . 1 . . . . 1 . . 3 . . . 5 . . . . . Utility 68 | 2 1 . 4 1 . 1 5 . 2 . . . . 3 . . . 1 2 . 1 4 . 1 2 18 4 4 4 3 5 Device 34 | 1 . . . . . . 2 . 1 . . . . 1 . . . . 1 . 1 2 . . 2 9 3 1 4 3 3 Storage 8 | 1 1 . 2 . . . 1 . . . . . . . . . . . . . . . . . . 3 . . . . . Processor 11 | . . . . . . 1 . . 1 . . . . 1 . . . 1 1 . . . . . . 4 . 1 . . 1 Hackware 4 | . . . . . . . 1 . . . . . . 1 . . . . . . . . . 1 . . 1 . . . . Protection 11 | . . . 2 1 . . 1 . . . . . . . . . . . . . . 2 . . . 2 . 2 . . 1 Artifact . | . . . . . . . . . . . . . . . . . . . . . . . . . . . . . . . . Weapon 34 | 2 4 . 3 4 . . 1 . . 1 1 . . 2 . . . . 1 . . . . . 1 11 . . 1 1 1 Energy Gun . | . . . . . . . . . . . . . . . . . . . . . . . . . . . . . . . . Energy Cannon 5 | . . . . . . . 1 . . 1 . . . 1 . . . . . . . . . . . 1 . . . . 1 Ballistic Gun 10 | 2 2 . 2 2 . . . . . . . . . . . . . . . . . . . . . 2 . . . . . Ballistic Cannon 3 | . 1 . . . . . . . . . . . . . . . . . . . . . . . . 1 . . . 1 . Launcher 4 | . . . 1 . . . . . . . 1 . . . . . . . . . . . . . . 1 . . 1 . . Special Weapon 2 | . . . . 1 . . . . . . . . . 1 . . . . . . . . . . . . . . . . . Impact Weapon 3 | . 1 . . 1 . . . . . . . . . . . . . . . . . . . . . 1 . . . . . Slashing Weapon 2 | . . . . . . . . . . . . . . . . . . . . . . . . . 1 1 . . . . . Piercing Weapon 5 | . . . . . . . . . . . . . . . . . . . 1 . . . . . . 4 . . . . . Special Melee Weapon . | . . . . . . . . . . . . . . . . . . . . . . . . . . . . . . . . Unidentified Prototypes 12 | . 1 . 1 1 . . . . . . 1 . . . . . 1 . . . . . . . 2 2 . 2 1 . . Parts Lost 26 | . 1 . . . . . . . . . . . . . . . . 3 . . 1 . . . . 6 . . . 3 12 Power 3 | . 1 . . . . . . . . . . . . . . . . 1 . . . . . . . . . . . 1 . Propulsion 9 | . . . . . . . . . . . . . . . . . . . . . . . . . . 3 . . . . 6 Utility 10 | . . . . . . . . . . . . . . . . . . 1 . . 1 . . . . 2 . . . 1 5 Weapon 4 | . . . . . . . . . . . . . . . . . . 1 . . . . . . . 1 . . . 1 1 Highest Loss Streak 6 | . 1 . . . . . . . . . . . . . . . . 2 . . 1 . . . . 4 . . . 2 6 To Critical Strikes . | . . . . . . . . . . . . . . . . . . . . . . . . . . . . . . . . Average Backups 18 | 3 9 10 19 24 25 22 10 10 10 9 9 10 9 9 9 8 8 8 8 9 10 14 13 11 13 19 24 23 24 23 20 Power 1 | . 1 1 1 1 1 . 1 1 1 1 1 1 1 1 1 1 1 . . 1 1 1 1 . . 1 1 1 1 1 1 Propulsion 4 | 1 2 2 5 10 11 8 2 2 2 2 2 2 2 2 1 1 1 1 1 2 2 4 3 2 3 2 4 4 3 4 4 Utility 7 | . 2 2 6 8 9 10 4 4 4 4 4 4 4 3 4 4 3 3 2 3 3 3 4 4 3 8 15 14 13 12 8 Weapon 3 | 1 3 4 5 4 3 2 2 2 2 1 1 2 1 2 2 1 2 2 2 1 2 3 3 3 3 5 3 3 5 4 3 Tool/Special . | . . . . . . . . . . . . . . . . . . . . . . . . . . . . . . . . Unused Backups 79 | . 2 2 4 . . 7 4 . . . . . . 3 1 . . . . . . 2 . . 2 35 . 3 2 2 10 Power 3 | . . . . . . . 1 . . . . . . . . . . . . . . 1 . . . 1 . . . . . Propulsion 34 | . . . 1 . . 3 1 . . . . . . 2 1 . . . . . . 1 . . 1 19 . 1 1 . 3 Utility 26 | . 1 1 1 . . 3 2 . . . . . . . . . . . . . . . . . . 11 . 2 . . 5 Weapon 13 | . 1 1 2 . . 1 . . . . . . . 1 . . . . . . . . . . . 4 . . 1 2 . Tool/Special 3 | . . . . . . . . . . . . . . . . . . . . . . . . . 1 . . . . . 2 Average Slot Usage (%) 88 | . 99 99 99 99 100 81 84 86 86 86 84 81 81 86 88 87 85 82 83 85 83 79 79 80 82 83 94 92 91 91 85 Engine 4 | . 13 14 11 11 11 7 . . . . . . . . . . . . . . . 1 . . . . . . . . . Core 4 | . . . . . . 3 6 6 6 6 6 6 6 5 5 5 5 5 5 5 5 5 5 4 4 4 12 12 11 10 9 Treads 12 | . . 2 33 33 33 30 . . . . . . . . . . . . . . . . . . . . . . . . . Leg 2 | . 28 25 . . . . . . . . . . . . . . . . . . . . . . . . . . . . . Hover 6 | . . . . . . . . . . . . . . . . . . . . . . . . . . 6 33 33 34 33 33 Flight 9 | . . . . . . . 31 33 33 33 32 31 31 26 27 27 27 27 24 25 25 24 25 27 27 21 . . . . . Device 9 | . 14 14 3 . . . 12 13 13 13 12 12 12 12 11 10 8 11 14 15 15 15 14 12 14 13 16 13 15 19 17 Storage 7 | . 14 14 11 11 11 11 6 6 6 6 6 6 6 5 5 5 5 5 5 5 5 5 5 4 4 4 4 4 3 3 3 Processor 7 | . . . . . . 3 6 6 6 6 6 6 6 11 11 11 11 11 15 15 15 15 15 13 13 17 8 8 7 7 7 Hackware 1 | . . . . . . . 5 6 6 6 6 6 6 8 11 11 11 9 5 5 5 5 5 4 4 . 3 4 2 . . Protection 5 | . . . 7 10 11 7 5 6 6 6 6 6 6 5 5 5 5 5 5 5 2 2 5 4 2 2 4 4 3 3 3 Ballistic Gun 10 | . 26 28 32 32 33 6 . . . . . . . . . . . . . . . . . . . . . . . . . Impact Weapon 2 | . . . . . . 8 6 6 6 6 6 6 6 5 5 5 5 5 5 5 5 2 . . . . 4 4 3 2 1 Piercing Weapon 1 | . . . . . . . . . . . . . . . . . . . 4 5 5 2 4 4 4 4 4 4 3 5 2 Peak Build Rating 308 | 7 12 12 22 25 22 25 51 48 48 52 49 48 52 70 67 71 68 68 100 101 98 124 123 136 173 261 286 290 308 308 294 Average Rating 108 | 5 11 11 18 22 22 21 46 48 47 48 48 48 47 62 66 66 63 62 94 96 95 113 116 135 147 207 284 288 306 299 283 On Entrance 94 | . 7 12 12 22 22 22 25 48 48 48 48 48 48 50 66 67 58 68 68 96 96 95 111 118 127 165 261 286 288 305 289 Avg Prop Armor Cover (%) . | . . . . . . 4 . . . . . . . . . . . . . . . . . . . . . . . . . Naked Turns . | . . . . . . . . . . . . . . . . . . . . . . . . . . . . . . . . Heaviest Build 142 | 11 22 22 103 103 103 103 23 23 24 23 23 23 24 25 25 25 25 25 31 31 31 57 42 50 54 104 126 131 139 142 132 Greatest Support 143 | 20 20 40 60 60 60 60 25 25 25 25 25 25 25 25 25 25 25 25 35 35 35 42 42 57 59 126 126 126 139 139 143 Greatest Overweight (x) 5 | 2 1 1 1 1 1 5 . . . . . . . 1 . . . . . . . 1 . . . 4 . 1 . 1 . Average Overweight (x) . | . . . . 1 1 1 . . . . . . . . . . . . . . . . . . . . . . . . . Largest Inventory Capacity 25 | 8 10 10 25 25 25 25 25 10 10 10 10 10 10 10 10 10 10 10 10 10 10 15 15 15 15 25 25 25 25 25 25 Average Capacity 20 | 7 9 10 21 25 25 25 10 10 10 10 10 10 10 10 10 10 10 10 10 10 10 14 15 15 15 22 25 25 25 25 25 Most Carried 25 | 5 10 10 25 25 25 25 21 10 10 10 10 10 10 10 10 10 10 10 10 10 10 15 15 13 15 25 25 25 25 25 25 Average Carried 18 | 3 9 9 19 24 25 22 10 10 10 9 9 10 9 9 9 9 9 9 8 9 9 14 14 11 13 19 24 24 24 24 21 Final Capacity 25 | 8 10 10 25 25 25 25 10 10 10 10 10 10 10 10 10 10 10 10 10 10 10 15 15 15 15 25 25 25 25 25 25 Final Carried 25 | 5 10 10 25 25 25 22 10 10 10 10 10 10 10 10 10 10 10 8 10 10 10 15 14 13 14 25 25 25 25 25 18 Class Distribution -------------------- 16% | Scavenger-Sprinter 14% | Commander-Mutant 11% | Commander-Tank 9% | Scout 9% | Hacker-Sprinter 8% | Mutant 6% | Tank 4% | Scavenger-Ninja 3% | Infiltrator-Sprinter 3% | Gunner Dominant Class ---------------- Mutant | -10/Materials Mutant | -10/Mines Tank | -9/Materials Commander-Tank | -9/Storage Commander-Tank | -9/Recycling Commander-Mutant | -9/Scraptown Commander-Scout | -6/Factory Scout | -6/Waste Scout | -6/Factory Scout | -6/Lower Caves Scout | -6/Lower Caves Scout | -6/Zion Scout | -5/Proximity Caves Hacker-Scout | -5/Factory Hacker-Scout | -5/Upper Caves Hacker-Scout | -5/Upper Caves Hacker-Scout | -5/Zhirov Hacker-Scout | -4/Proximity Caves Scout | -4/Factory Scout | -4/Upper Caves Scout | -4/Upper Caves Infiltrator-Sprinter | -4/Warlord Scout | -3/Proximity Caves Scavenger-Scout | -3/Research Scavenger-Ninja | -3/Quarantine Scavenger-Sprinter | -3/Protoforge Hacker-Sprinter | -2/Research Hacker-Sprinter | -2/Testing Hacker-Sprinter | -1/Access Scavenger-Sprinter | -1/Command Scavenger-Sprinter | -1/Access_0 Resources | -11 -10 -10 -9 -9 -9 -9 -6 -6 -6 -6 -6 -6 -5 -5 -5 -5 -5 -4 -4 -4 -4 -4 -3 -3 -3 -3 -2 -2 -1 -1 -1 ----------- Run | Yrd Mat Min Mat Sto Rec Scr Fac Was Fac Low Low Zio Pro Fac Upp Upp Zhi Pro Fac Upp Upp War Pro Res Qua Frg Res Tes Acc Com Ac0 Matter Collected 15363 | 292 264 182 797 389 202 245 100 . 10 40 50 45 115 150 50 . 60 5 60 . 95 1125 . 46 248 4684 1100 1791 2113 907 198 Remotely 1805 | . . . . . . . . . . . . . . . . . . . . . . . . . . . 528 590 687 . . Salvage Created 20549 | 169 502 316 1635 784 81 . . . . . 18 . 84 99 . . 119 26 . . 23 487 . 46 333 2473 1559 4815 3914 1793 1273 Parts 933 | 12 42 17 94 60 7 . . . . . 4 . 6 7 . . . 1 . . 6 25 . 1 18 113 79 178 172 46 45 Haulers Intercepted 16 | . 2 . 4 4 . . . . . . . . . 1 . . . . . . . . . . . . . 1 4 . . Recyclers Shooed 7 | 1 . 2 . . 3 . . . . . . . . . . . . . . . . . . . . . . . 1 . . Parts Field Recycled . | . . . . . . . . . . . . . . . . . . . . . . . . . . . . . . . . Retrieved Matter . | . . . . . . . . . . . . . . . . . . . . . . . . . . . . . . . . Parts Self-Destructed 12 | . . . . . . . . . . 2 2 . 3 . . . . . . . 5 . . . . . . . . . . Prevented 1 | . . . . . . . . . . . . . . . . . . 1 . . . . . . . . . . . . . Parts Restored 8 | . . . . . . . . . . . . . . . . . . . . . . . . . . 8 . . . . . Faulty 8 | . . . . . . . . . . . . . . . . . . . . . . . . . . 8 . . . . . Kills | -11 -10 -10 -9 -9 -9 -9 -6 -6 -6 -6 -6 -6 -5 -5 -5 -5 -5 -4 -4 -4 -4 -4 -3 -3 -3 -3 -2 -2 -1 -1 -1 ------- Run | Yrd Mat Min Mat Sto Rec Scr Fac Was Fac Low Low Zio Pro Fac Upp Upp Zhi Pro Fac Upp Upp War Pro Res Qua Frg Res Tes Acc Com Ac0 Combat Hostiles Destroyed 303 | . 12 8 30 12 2 . . . . . 3 . 5 5 . . . . . . 5 24 . . 5 52 24 50 38 13 15 Melee 35 | . . . . . . . . . . . . . . . . . . . . . . . . . . 20 . 1 1 5 8 Guns 69 | . 12 8 27 12 2 . . . . . . . . . . . . . . . . . . . . 8 . . . . . Cannons 119 | . . . . . . . . . . . . . . . . . . . . . . . . . . 9 19 49 36 6 . AOE 73 | . . . 3 . . . . . . . 3 . 5 5 . . . . . . 5 24 . . 5 15 5 . 1 2 . Classes Destroyed 25 | 2 5 1 3 . . . . . . . . . . . . . . . . . . 1 . . . 6 2 3 2 . . Worker 5 | . . . 1 . . . . . . . . . . . . . . . . . . . . . 1 . . 1 2 . . Builder 13 | . . . 1 1 1 . . . . . . . . . . . . . . . . . . . . . 2 2 6 . . Tunneler 3 | 3 . . . . . . . . . . . . . . . . . . . . . . . . . . . . . . . Hauler 16 | . 2 . 4 4 . . . . . . . . . 1 . . . . . . . . . . . . . 1 4 . . Recycler 10 | 1 . . 3 . . . . . . . . . . . . . . . . . . . . . 2 . . 2 2 . . Mechanic 2 | . . . . . . . . . . . . . . . . . . . . . . . . . . 2 . . . . . Operator 6 | . 1 . . 1 . . . . . . . . . . . . . . . . . . . . . 1 2 . 1 . . Drone 17 | . . . . . . . . . . . . . . . . . . . . . . . . . . 17 . . . . . Turret 7 | . . . . . . . . . . . . . . . . . . . . . . . . . . . . . 7 . . Watcher 21 | . 3 . 2 2 . . . . . . . . . . . . . . . . . . . 1 1 . 1 4 7 . . Swarmer 72 | . 6 2 9 2 1 . . . . . 3 . 5 5 . . . . . . 5 3 . . 5 3 10 . 8 5 . Saboteur 10 | . . . . . . . . . . . . . . . . . . . . . . 7 . . . . . 2 1 . . Grunt 84 | . 6 4 10 5 . . . . . . . . . . . . . . . . . 14 . . . 8 . 27 9 1 . Brawler 4 | . . . . . . . . . . . . . . . . . . . . . . . . . . . . 4 . . . Duelist 3 | . . . 1 . . . . . . . . . . . . . . . . . . . . . . . . . 2 . . Protector 1 | . . . . . . . . . . . . . . . . . . . . . . . . . . . . 1 . . . Researcher 6 | . . . . . . . . . . . . . . . . . . . . . . . . . . 2 . 4 . . . Sentry 41 | . . 2 10 5 1 . . . . . . . . . . . . . . . . . . . . 10 6 4 3 . . Demolisher 4 | . . . . . . . . . . . . . . . . . . . . . . . . . . . . . 4 . . Hunter 12 | . . . . . . . . . . . . . . . . . . . . . . . . . . 2 4 . 4 2 . Programmer 16 | . . . . . . . . . . . . . . . . . . . . . . . . . . . 3 9 4 . . M Guard 2 | . . . . . . . . . . . . . . . . . . . . . . . . . . . . . . 2 . Enhanced Grunt 9 | . . . . . . . . . . . . . . . . . . . . . . . . . . . . . . . 9 Enhanced Programmer 3 | . . . . . . . . . . . . . . . . . . . . . . . . . . . . . . . 3 Decapitator 7 | . . . . . . . . . . . . . . . . . . . . . . . . . . 7 . . . . . Immortal 3 | . . . . . . . . . . . . . . . . . . . . . . . . . . 3 . . . . . Combat Programmer 2 | . . . . . . . . . . . . . . . . . . . . . . . . . . . . . . 2 . Striker 5 | . . . . . . . . . . . . . . . . . . . . . . . . . . . 1 2 2 . . Alpha 7 1 | . . . . . . . . . . . . . . . . . . . . . . . . . . . . 1 . . . V-Series 2 | . . . . . . . . . . . . . . . . . . . . . . . . . . 2 . . . . . Decomposer 1 | . . . . . . . . . . . . . 1 . . . . . . . . . . . . . . . . . . Best Kill Streak 18 | 3 9 2 8 4 1 . . . . . 3 . 5 6 . . . . . . 5 8 . 1 6 5 9 18 14 5 6 Combat Bots Only 14 | . 7 2 5 4 1 . . . . . 3 . 5 5 . . . . . . 5 8 . . 5 5 9 14 11 5 6 Max Kills in Single Turn 5 | 1 2 2 2 2 1 . . . . . 1 . 2 2 . . . . . . 4 5 . 1 4 3 5 3 3 2 2 Gunslinging 1 | . . 1 . 1 . . . . . . . . . . . . . . . . . . . . . . . . . . . Exploded 5 | . . . 2 . . . . . . . 1 . 2 2 . . . . . . 4 5 . . 3 3 5 . 1 2 . Melee 1 | . . . . . . . . . . . . . . . . . . . . . . . . . . 1 . 1 1 1 1 Uniques/NPCs Destroyed 5 | . . . . . . . . . . . . . . . . . . . . . . . . . . . . . 1 1 3 GL-D0S (-1/Access) MAIN.C Shell (-1/Command) A8 (-1/Access_0) A6 (-1/Access_0) Architect (-1/Access_0) Combat | -11 -10 -10 -9 -9 -9 -9 -6 -6 -6 -6 -6 -6 -5 -5 -5 -5 -5 -4 -4 -4 -4 -4 -3 -3 -3 -3 -2 -2 -1 -1 -1 -------- Run | Yrd Mat Min Mat Sto Rec Scr Fac Was Fac Low Low Zio Pro Fac Upp Upp Zhi Pro Fac Upp Upp War Pro Res Qua Frg Res Tes Acc Com Ac0 Hostile Shots Fired 972 | . 33 38 84 34 6 . . . . . 3 . 5 3 . 17 . 15 . 10 2 4 3 3 21 97 13 97 57 109 318 Missed 427 | . 9 7 22 9 4 . . . . . 1 . 2 2 . 10 . 10 . 9 . 2 3 2 14 60 10 34 30 56 131 Intercepted 11 | . . . . . . . . . . . . . . . . . . . . . . . . . . . . . 1 10 . Hits 545 | . 24 31 62 25 2 . . . . . 2 . 3 1 . 7 . 5 . 1 2 2 . 1 7 37 3 63 27 53 187 Melee 11 | . . . 1 . . . . . . . . . . . . . . . . . . . . . . 4 . . . . 6 Projectile 534 | . 24 31 61 25 2 . . . . . 2 . 3 1 . 7 . 5 . 1 2 2 . 1 7 33 3 63 27 53 181 AOE 7 | . . . . . . . . . . . . . . . . . . . . . . . . . . 3 . . . 2 2 Critical Strikes 38 | . 1 3 2 2 1 . . . . . . . . . . . . 2 . . . . . . 2 5 . 7 . 4 9 Actively Blocked 14 | . . . . . . . . . . . . . . . . . . . . . . . . . 2 4 . . . . 8 Part Disruptions 7 | . . . . . . . . . . . . . . . . . . . . . . . . . . . . 2 . 4 1 Damage Taken 10739 | . 285 424 822 312 27 . . . . . 33 . 45 17 . 113 . 109 . 21 33 68 . 38 169 2014 43 1028 352 1097 3689 Core 1298 | . 55 63 178 46 . . . . . . . . 18 . . 20 . 28 . . . . . 38 . 258 22 31 . 74 467 Absorbed by Shields 4262 | . . . . . . . . . . . . . . . . . . . . . . . . . . . 21 257 367 682 2935 Regen/Repaired (Parts) 3176 | . 79 . 202 92 . . . . . . . . . . . . . . . . . 17 . . 58 698 . 444 144 489 953 Core Remaining (%) 78 | 100 . 52 . . . 44 . . . . . . 97 . . . . 95 . . . . 100 . . 69 . 96 . . 56 Volleys Fired 659 | 11 30 20 63 39 4 . 3 . . 1 3 . 4 8 . 2 . . 2 2 2 49 2 . 12 138 48 76 112 24 4 Largest 3 | 2 2 2 3 3 3 . 1 . . 1 1 . 1 1 . 1 . . 1 1 1 1 1 . 1 2 1 1 1 1 1 Hottest 140 | 40 46 46 69 69 69 . 65 . . 85 43 . 85 90 . 90 . . 90 90 43 43 90 . 90 140 140 140 140 140 94 Shots Fired 929 | 22 57 40 185 117 12 . 3 . . 1 3 . 4 8 . 2 . . 2 2 2 49 2 . 12 141 48 77 112 24 4 Gun 488 | 22 54 40 183 117 12 . . . . . . . . . . . . . . . . . . . . 60 . . . . . Cannon 333 | . 3 . . . . . 3 . . 1 . . 1 3 . 2 . . 2 2 . . 2 . 8 53 46 77 104 22 4 Launcher 107 | . . . 2 . . . . . . . 3 . 3 4 . . . . . . 2 49 . . 4 28 2 . 8 2 . Special 1 | . . . . . . . . . . . . . . 1 . . . . . . . . . . . . . . . . . Kinetic 708 | 22 57 40 183 117 12 . . . . . . . . . . . . . . . . . . . . 77 28 75 82 15 . Thermal 110 | . . . . . . . 3 . . 1 . . 1 4 . 2 . . 2 2 . . 2 . 8 36 18 2 22 7 . Explosive 97 | . . . 2 . . . . . . . 3 . 3 4 . . . . . . 2 49 . . 4 28 2 . . . . Electromagnetic 14 | . . . . . . . . . . . . . . . . . . . . . . . . . . . . . 8 2 4 Robot Hit Streak 43 | 7 8 18 17 19 11 . . . . . . . . 13 . . . . . . 2 5 . . 1 43 15 31 16 10 9 Robot Miss Streak 7 | 1 3 2 3 3 . . . . . . . . . 1 . . . . . . . 1 . . 1 7 4 4 6 2 . Penetration Max 2 | . . . . . . . . . . . . . . . . . . . . . . . . . . 2 2 2 2 . . Secondary Targets 8 | . 3 2 2 1 . . . . . . . . . . . . . . . . . . . . . . . . . . . Max Gunslinging Chain 1 | . 1 1 1 1 . . . . . . . . . . . . . . . . . . . . . . . . . . . Shots Hit Robots 831 | 16 31 30 126 81 9 . . . . . . . 2 6 . . 2 1 . . 1 11 . 3 8 114 22 80 82 72 134 Core Hits 849 | 6 21 15 53 34 6 . . . . . 5 . 5 7 . . 1 . . . 6 89 . 1 12 110 61 148 165 55 49 Critical Kills 154 | . . . 1 . . . . . . . . . . . . . . . . . . . . . . 9 22 60 56 6 . Critical Parts Destroyed 148 | . . . 1 . . . . . . . . . . . . . . . . . . . . . . 8 24 48 56 5 6 Critical Strikes 426 | . . . 2 . . . . . . . . . . . . . . . . . . . . . . 30 49 116 120 42 67 Destroy 316 | . . . 2 . . . . . . . . . . . . . . . . . . . . . . 24 49 112 117 12 . Smash 9 | . . . . . . . . . . . . . . . . . . . . . . . . . . . . 1 1 1 6 Impale 100 | . . . . . . . . . . . . . . . . . . . . . . . . . . 5 . 3 2 29 61 Sunder 1 | . . . . . . . . . . . . . . . . . . . . . . . . . . 1 . . . . . Melee Attacks 463 | . 2 . . 5 . . 18 . 12 1 3 1 5 20 3 1 3 5 16 3 . 16 5 14 18 65 2 27 15 64 139 Impact 140 | . 2 . . 5 . . 18 . 12 1 3 1 5 20 3 1 3 5 2 3 . 14 . . . 2 . 3 7 8 22 Slashing 10 | . . . . . . . . . . . . . . . . . . . . . . . . . 1 9 . . . . . Piercing 311 | . . . . . . . . . . . . . . . . . . . 14 . . 2 5 14 17 52 2 24 8 56 117 Entropic 2 | . . . . . . . . . . . . . . . . . . . . . . . . . . 2 . . . . . Sneak Attacks 33 | . . . . . . . . . . . . . 1 1 . . . . . . . . . . 2 25 . 2 2 . . Combat Hostiles 3 | . . . . . . . . . . . . . . . . . . . . . . . . . . 3 . . . . . Follow-up Attacks 29 | . . . . . . . . . . . . . . . . . . . . . . . . . . 2 . . . 12 15 Damage Inflicted 44263 | 134 530 442 2179 1322 252 . . . . . 309 . 770 887 . . 178 148 . . 377 7213 . 232 1236 9395 1012 2241 2254 4959 8193 Guns 5977 | 134 530 432 1947 1315 171 . . . . . . . . . . . . . . . . . . . . 1448 . . . . . Cannons 4431 | . . . . . . . . . . . . . . . . . . . . . . . . . . 1559 489 883 1158 201 141 Explosions 15885 | . . . 223 . . . . . . . 309 . 518 587 . . . . . . 377 7213 . . 702 2625 523 49 432 643 1684 Melee 17863 | . . . . . . . . . . . . . 252 300 . . 178 148 . . . . . 232 534 3763 . 1309 664 4115 6368 Ramming 107 | . . 10 9 7 81 . . . . . . . . . . . . . . . . . . . . . . . . . . Kinetic 8368 | 134 530 432 1947 1315 171 . . . . . . . . . . . . . . . . . . . . 1592 332 883 831 201 . Thermal 1899 | . . . . . . . . . . . . . . . . . . . . . . . . . . 1415 157 . 327 . . Explosive 13077 | . . . 223 . . . . . . . 309 . 518 587 . . . . . . 377 7213 . . 702 2625 523 . . . . Electromagnetic 702 | . . . . . . . . . . . . . . . . . . . . . . . . . . . . . 275 286 141 Impact 5699 | . . . . . . . . . . . . . 252 300 . . 178 148 . . . . . . . . . 249 581 857 3134 Slashing 1051 | . . . . . . . . . . . . . . . . . . . . . . . . . 132 919 . . . . . Piercing 13099 | . . . . . . . . . . . . . . . . . . . . . . . . 232 402 2583 . 1109 240 3615 4918 Entropic 261 | . . . . . . . . . . . . . . . . . . . . . . . . . . 261 . . . . . Highest Corruption 10 | . . . . . . . . . . . . . . . . . . . . . . . . . . 5 . 7 . 7 10 Average Corruption 4 | . . . . . . . . . . . . . . . . . . . . . . . . . . 3 . 3 . 5 3 Corruption Purged 16 | . . . . . . . . . . . . . . . . . . . . . . . . . . 9 . . . 7 . Corruption Blocked . | . . . . . . . . . . . . . . . . . . . . . . . . . . . . . . . . Effects 36 | . . . . . . . . . . . . . . . . . . . . . . . . . . 3 . 14 . 14 5 Message Errors 3 | . . . . . . . . . . . . . . . . . . . . . . . . . . 1 . 1 . 1 . Matter Fused 10 | . . . . . . . . . . . . . . . . . . . . . . . . . . 1 . 3 . 4 2 Heat Flow Errors 7 | . . . . . . . . . . . . . . . . . . . . . . . . . . 1 . 4 . 1 1 Energy Discharges 6 | . . . . . . . . . . . . . . . . . . . . . . . . . . . . 1 . 5 . Parts Rejected 1 | . . . . . . . . . . . . . . . . . . . . . . . . . . . . . . . 1 Data Loss (minor) 6 | . . . . . . . . . . . . . . . . . . . . . . . . . . . . 2 . 3 1 Data Loss (major) 1 | . . . . . . . . . . . . . . . . . . . . . . . . . . . . 1 . . . Misfires 1 | . . . . . . . . . . . . . . . . . . . . . . . . . . . . 1 . . . Alerts 1 | . . . . . . . . . . . . . . . . . . . . . . . . . . . . 1 . . . Overload Shots . | . . . . . . . . . . . . . . . . . . . . . . . . . . . . . . . . Overflow Damage 4378 | . . . 8 . . . . . . . . . 283 55 . . 94 130 . . 5 120 . 39 125 1225 . 266 211 384 1433 Projectiles 102 | . . . . . . . . . . . . . . . . . . . . . . . . . . 86 . . 16 . . Explosions 609 | . . . 8 . . . . . . . . . 60 55 . . . . . . 5 120 . . 7 34 . . 6 6 308 Melee 3667 | . . . . . . . . . . . . . 223 . . . 94 130 . . . . . 39 118 1105 . 266 189 378 1125 Knockbacks 68 | . . . . . 1 . . . . . . . . . . . . . . . . . . . . 4 5 13 14 5 26 Impact 28 | . . . . . 1 . . . . . . . . . . . . . . . . . . . . . . . 1 2 24 Kinetic 38 | . . . . . . . . . . . . . . . . . . . . . . . . . . 4 5 13 13 3 . Secondary 2 | . . . . . . . . . . . . . . . . . . . . . . . . . . . . . . . 2 Self-Inflicted Damage 148 | . . . . . . . . . . . . . . . . . . . . . . . . . . 97 . . . 51 . Shots 7 | . . . . . . . . . . . . . . . . . . . . . . . . . . 2 . . . 5 . Rammed 9 | . . . 1 1 7 . . . . . . . . . . . . . . . . . . . . . . . . . . Targets Rammed 13 | . . 4 1 1 7 . . . . . . . . . . . . . . . . . . . . . . . . . . Kicked 4 | . . 4 . . . . . . . . . . . . . . . . . . . . . . . . . . . . . Crushed . | . . . . . . . . . . . . . . . . . . . . . . . . . . . . . . . . Highest Temperature 364 | . 22 32 102 95 39 . 60 . . 40 . . 40 40 . 80 . 364 38 38 . 6 92 50 . 198 203 287 248 216 87 Average Temperature 55 | . 10 8 19 26 12 . 35 . . 17 . . 16 19 . 40 . 194 20 18 . 1 49 12 . 76 51 71 62 76 56 Received Heat Transfer 1228 | . 75 195 234 153 27 . . . . . . . . . . 18 . 369 . . . . . 9 21 36 . 35 16 16 24 Effects 4 | . . . . . . . . . . . . . . . . . . . . . . . . . . . . 3 1 . . Energy Bleed 1 | . . . . . . . . . . . . . . . . . . . . . . . . . . . . . 1 . . Interference 3 | . . . . . . . . . . . . . . . . . . . . . . . . . . . . 3 . . . Siege Activations . | . . . . . . . . . . . . . . . . . . . . . . . . . . . . . . . . Martial Activations . | . . . . . . . . . . . . . . . . . . . . . . . . . . . . . . . . Shielding Activations . | . . . . . . . . . . . . . . . . . . . . . . . . . . . . . . . . Robots Disrupted . | . . . . . . . . . . . . . . . . . . . . . . . . . . . . . . . . Combat Hostiles . | . . . . . . . . . . . . . . . . . . . . . . . . . . . . . . . . Robots Corrupted 8 | . . . . . . . . . . . . . . . . . . . . . . . . . . . . . 1 . 7 Combat Hostiles 7 | . . . . . . . . . . . . . . . . . . . . . . . . . . . . . . . 7 Parts Fried 18 | . . . . . . . . . . . . . . . . . . . . . . . . . . . . . 1 1 16 Impact Corruptions 42 | . . . . . . . . . . . . . 6 . . . 1 2 . . . . . . . . . 3 2 4 24 Robots Melted . | . . . . . . . . . . . . . . . . . . . . . . . . . . . . . . . . Combat Hostiles . | . . . . . . . . . . . . . . . . . . . . . . . . . . . . . . . . Parts Melted 1 | . . . . . . . . . . . . . . . . . . . . . . . . . . . . . 1 . . Heat Transferred 1150 | . . . . . . . . . . . . . . . . . . . . . . . . . . 850 100 . 200 . . Parts Sabotaged . | . . . . . . . . . . . . . . . . . . . . . . . . . . . . . . . . Parts Stolen . | . . . . . . . . . . . . . . . . . . . . . . . . . . . . . . . . Parts Stripped . | . . . . . . . . . . . . . . . . . . . . . . . . . . . . . . . . Power Chain Reactions 1 | . . . . . . . . . . . . . . . . . . . . . . . . . . . . . 1 . . Alert | -11 -10 -10 -9 -9 -9 -9 -6 -6 -6 -6 -6 -6 -5 -5 -5 -5 -5 -4 -4 -4 -4 -4 -3 -3 -3 -3 -2 -2 -1 -1 -1 ------- Run | Yrd Mat Min Mat Sto Rec Scr Fac Was Fac Low Low Zio Pro Fac Upp Upp Zhi Pro Fac Upp Upp War Pro Res Qua Frg Res Tes Acc Com Ac0 Maximum Alert Level 5 | . 1 . 1 1 . . . . . . . . . 1 . . . . . . . . . . 1 3 4 5 5 4 . Low Security (%) 47 | 100 94 100 40 60 100 . 100 100 100 . . . . 89 . . . . 100 . . . . 100 95 4 . . . 65 . Level 1 19 | . 5 . 59 39 . . . . . . . . . 10 . . . . . . . . . . 4 29 . . . . . Level 2 12 | . . . . . . . . . . . . . . . . . . . . . . . . . . 41 29 9 . . . Level 3 10 | . . . . . . . . . . . . . . . . . . . . . . . . . . 24 59 25 7 . . Level 4 9 | . . . . . . . . . . . . . . . . . . . . . . . . . . . 10 45 85 34 . Level 5 1 | . . . . . . . . . . . . . . . . . . . . . . . . . . . . 18 2 . . High Security . | . . . . . . . . . . . . . . . . . . . . . . . . . . . . . 4 . . Max Security . | . . . . . . . . . . . . . . . . . . . . . . . . . . . . . . . . Peak Influence 1824 | 10 230 92 337 344 135 . 30 . 58 . . . . 209 . . . . 26 . . . . 9 206 819 1117 1824 1751 1349 . Initial 1120 | . 3 42 . 84 102 . . . . . . . . 69 . . . . . . . . . . . 115 456 588 1094 1120 . Average 392 | 2 76 20 197 186 49 . 11 . 23 . . . . 145 . . . . 3 . . . . 2 104 470 865 1244 1357 1288 . Influence Increases 11128 | 20 371 205 894 757 219 . 83 . 114 . 100 . 160 277 . 90 . 20 67 30 110 885 . 25 399 1893 893 1634 1523 359 . Destroy 0b10 Robot/C 5680 | . 240 160 600 320 100 . . . . . 60 . 100 100 . . . . . . 100 480 . . 100 760 480 1040 780 260 . Destroy 0b10 Robot/NC 490 | 20 30 . 55 40 5 . . . . . . . 5 5 . . . 5 . . . . . 5 20 110 25 55 110 . . Destroy Leader 994 | . 70 30 182 122 . . . . . . 10 . 10 12 . . . . . . 10 . . 2 12 60 122 150 172 30 . Allied During Kill 250 | . . . . 126 26 . . . . . . . . . . . . . . . . . . . . 2 . . 96 . . Successful Hack 370 | . 12 . 22 39 28 . 20 . 28 . . . . 66 . . . . 24 . . . . 6 64 . 14 20 27 . . Select Force Hacks 60 | . . . . . 60 . . . . . . . . . . . . . . . . . . . . . . . . . . Disable Machine 750 | . . . 30 75 . . 15 . 15 . . . . . . . . . 15 . . . . . 45 285 60 135 45 30 . Anti-Garrison Action 150 | . . . . . . . . . . . . . . . . . . . . . . . . . . 150 . . . . . Destroy Structure 1184 | . 4 . 5 5 . . 18 . 11 . . . . 94 . . . . 28 . . . . 12 98 376 162 84 248 39 . Partial Spotted 120 | . . . . . . . 15 . . . . . . . . . . . . . . . . . . 45 15 30 15 . . Lose Combat Pursuer 1080 | . 15 15 . 30 . . 15 . 60 . 30 . 45 . . 90 . 15 . 30 . 405 . . 60 105 15 120 30 . . Influence Decreases 9799 | 15 268 312 694 695 482 . 81 2 75 39 70 30 50 221 122 49 85 20 67 20 70 344 591 25 193 1287 658 857 1596 781 . Entered New Map 3501 | . 2 66 1 117 161 . . 2 . 15 . 30 . 41 62 9 85 . . . 2 50 591 . . 91 356 459 730 631 . Time Decay 4920 | 15 256 246 543 478 321 . 81 . 75 24 70 . 50 180 50 40 . 20 67 20 58 274 . 25 146 735 302 368 356 120 . Lost Part 110 | . 10 . . . . . . . . . . . . . . . . . . . 10 . . . . 60 . . . 30 . Lost Ally 460 | . . . . 100 . . . . . . . . . . 10 . . . . . . 20 . . . 240 . 30 60 . . Purge Threat 808 | . . . 150 . . . . . . . . . . . . . . . . . . . . . 47 161 . . 450 . . Squads Dispatched 73 | . 3 . 3 2 . . 1 . 4 . . . . 5 . . . . 4 . . . . 3 2 10 6 15 14 1 . Investigation 22 | . 1 . 2 1 . . 1 . 2 . . . . 2 . . . . 3 . . . . 3 . 6 . . 1 . . Extermination 17 | . . . . . . . . . 1 . . . . 2 . . . . 1 . . . . . 2 1 2 5 3 . . Reinforcement 13 | . 2 . 1 1 . . . . 1 . . . . 1 . . . . . . . . . . . 1 . 2 3 1 . Assault 15 | . . . . . . . . . . . . . . . . . . . . . . . . . . 2 4 5 4 . . Garrison 6 | . . . . . . . . . . . . . . . . . . . . . . . . . . . . 3 3 . . Intercept . | . . . . . . . . . . . . . . . . . . . . . . . . . . . . . . . . Searches Triggered . | . . . . . . . . . . . . . . . . . . . . . . . . . . . . . . . . Unchained Authorized 2 | . . . . . . . . . . . . . . . . . . . . . . . . . . . 1 . 1 . . Construction Impeded 3 | . . . . . . . . . . . . . . . . . . . . . . . . . . . . 1 2 . . Haulers Reinforced 2 | . . . . . . . . . . . . . . 1 . . . . . . . . . . . . . 1 . . . Active Scanning Responses . | . . . . . . . . . . . . . . . . . . . . . . . . . . . . . . . . Cargo Convoy Interrupts . | . . . . . . . . . . . . . . . . . . . . . . . . . . . . . . . . Stealth | -11 -10 -10 -9 -9 -9 -9 -6 -6 -6 -6 -6 -6 -5 -5 -5 -5 -5 -4 -4 -4 -4 -4 -3 -3 -3 -3 -2 -2 -1 -1 -1 --------- Run | Yrd Mat Min Mat Sto Rec Scr Fac Was Fac Low Low Zio Pro Fac Upp Upp Zhi Pro Fac Upp Upp War Pro Res Qua Frg Res Tes Acc Com Ac0 Distress Signals 21 | . 1 . 3 1 . . . . 1 . . . . . . . . . . . . 4 . . 1 6 . 2 2 . . Communications Jammed 1 | . . . . . . . . . . . . . . . . . . . . . . . . . 1 . . . . . . Distress Signals . | . . . . . . . . . . . . . . . . . . . . . . . . . . . . . . . . Times Spotted 467 | . 18 9 38 18 4 . 2 3 7 . 2 . 3 3 . 11 . 3 3 3 2 86 1 5 12 56 15 70 50 15 28 Peak Tracking Total 13 | . 6 2 6 4 1 . 1 3 4 . 3 . 3 1 . 8 . 3 1 3 4 13 1 3 6 6 5 8 7 6 7 Tactical Retreats 43 | . 1 1 . 2 . . 1 . 3 . 1 . 1 . . 1 . 1 . 1 . 8 . . 1 6 1 7 7 . . Traps | -11 -10 -10 -9 -9 -9 -9 -6 -6 -6 -6 -6 -6 -5 -5 -5 -5 -5 -4 -4 -4 -4 -4 -3 -3 -3 -3 -2 -2 -1 -1 -1 ------- Run | Yrd Mat Min Mat Sto Rec Scr Fac Was Fac Low Low Zio Pro Fac Upp Upp Zhi Pro Fac Upp Upp War Pro Res Qua Frg Res Tes Acc Com Ac0 Traps Triggered 19 | . 2 . 3 2 . . 1 . . . . . . . . . . . . . . . . . 2 7 . 1 1 . . Indirectly 1 | . . . . . . . . . . . . . . . . . . . . . . . . . . . . . 1 . . Trap Hack Attempts . | . . . . . . . . . . . . . . . . . . . . . . . . . . . . . . . . Triggered . | . . . . . . . . . . . . . . . . . . . . . . . . . . . . . . . . Disarmed . | . . . . . . . . . . . . . . . . . . . . . . . . . . . . . . . . Reprogrammed . | . . . . . . . . . . . . . . . . . . . . . . . . . . . . . . . . Reused . | . . . . . . . . . . . . . . . . . . . . . . . . . . . . . . . . Traps Extracted . | . . . . . . . . . . . . . . . . . . . . . . . . . . . . . . . . Installed . | . . . . . . . . . . . . . . . . . . . . . . . . . . . . . . . . Triggered . | . . . . . . . . . . . . . . . . . . . . . . . . . . . . . . . . Machines | -11 -10 -10 -9 -9 -9 -9 -6 -6 -6 -6 -6 -6 -5 -5 -5 -5 -5 -4 -4 -4 -4 -4 -3 -3 -3 -3 -2 -2 -1 -1 -1 ---------- Run | Yrd Mat Min Mat Sto Rec Scr Fac Was Fac Low Low Zio Pro Fac Upp Upp Zhi Pro Fac Upp Upp War Pro Res Qua Frg Res Tes Acc Com Ac0 Machines Disabled 69 | . . . 2 5 . . 1 . 1 . . . . . 1 . 1 . 1 . . 3 . . 3 25 4 9 3 4 6 Max in Single Turn 2 | . . . 1 1 . . 1 . 1 . . . . . 1 . 1 . 1 . . 2 . . 1 2 1 1 1 1 1 Garrison Access 2 | . . . . . . . . . . . . . . . . . . . . . . . . . 1 1 . . . . . Machines Repaired . | . . . . . . . . . . . . . . . . . . . . . . . . . . . . . . . . Machines Dismantled 1 | . . . . 1 . . . . . . . . . . . . . . . . . . . . . . . . . . . Machines Sabotaged . | . . . . . . . . . . . . . . . . . . . . . . . . . . . . . . . . Overloaded Fab Kills . | . . . . . . . . . . . . . . . . . . . . . . . . . . . . . . . . Hacking | -11 -10 -10 -9 -9 -9 -9 -6 -6 -6 -6 -6 -6 -5 -5 -5 -5 -5 -4 -4 -4 -4 -4 -3 -3 -3 -3 -2 -2 -1 -1 -1 --------- Run | Yrd Mat Min Mat Sto Rec Scr Fac Was Fac Low Low Zio Pro Fac Upp Upp Zhi Pro Fac Upp Upp War Pro Res Qua Frg Res Tes Acc Com Ac0 Machines Accessed 132 | . 7 . 11 14 7 1 5 . 13 3 . . . 10 2 . 4 . 14 . 1 1 . 4 10 5 3 5 11 1 . Terminals 78 | . 5 . 6 12 5 . 3 . 6 1 . . . 6 . . . . 8 . . . . 1 8 1 2 4 9 1 . Fabricators 5 | . . . . . . . . . 1 . . . . . . . . . 2 . . . . . . . 1 1 . . . Repair Stations 4 | . 1 . 2 1 . . . . . . . . . . . . . . . . . . . . . . . . . . . Recycling Units 25 | . 1 . 2 1 2 . 1 . 5 . . . . 2 . . . . 3 . . . . 3 . 3 . . 2 . . Scanalyzers 7 | . . . 1 . . . 1 . 1 . . . . 2 . . . . 1 . . . . . 1 . . . . . . Garrison Access 2 | . . . . . . . . . . . . . . . . . . . . . . . . . 1 1 . . . . . Total Hacks 331 | . 18 . 39 39 19 7 13 . 26 5 . . . 27 2 . 17 . 32 . 1 1 . 8 25 9 9 9 24 1 . Successful 193 | . 9 . 19 22 10 7 7 . 13 5 . . . 16 2 . 17 . 12 . 1 1 . 4 16 5 7 7 12 1 . Failed 137 | . 9 . 20 17 9 . 6 . 13 . . . . 10 . . . . 20 . . . . 4 9 4 2 2 12 . . Catastrophic 18 | . . . 1 1 . . 1 . 1 . . . . 1 . . . . 8 . . . . 1 2 1 . . 1 . . Database Lockouts 1 | . . . . . . . . . . . . . . 1 . . . . . . . . . . . . . . . . . Manual 139 | . 14 . 13 13 17 . 5 . 13 . . . . 12 . . . . 18 . . . . 8 7 5 5 3 6 . . Terminals 209 | . 14 . 20 35 15 . 8 . 12 1 . . . 22 . . . . 19 . . . . 5 21 2 6 7 21 1 . Fabricators 14 | . . . . . . . . . 3 . . . . . . . . . 6 . . . . . . . 3 2 . . . Repair Stations 14 | . 2 . 10 2 . . . . . . . . . . . . . . . . . . . . . . . . . . . Recycling Units 46 | . 2 . 7 2 4 . 2 . 10 . . . . 3 . . . . 5 . . . . 3 . 5 . . 3 . . Scanalyzers 12 | . . . 2 . . . 3 . 1 . . . . 2 . . . . 2 . . . . . 2 . . . . . . Garrison Access 4 | . . . . . . . . . . . . . . . . . . . . . . . . . 2 2 . . . . . Terminal Hacks 97 | . . . 4 13 . 7 2 . 5 5 . . . 10 2 . 17 . 2 . 1 1 . . 9 2 2 5 9 1 . Record 18 | . . . . . . 7 . . . 4 . . . . 1 . 5 . . . . . . . . . 1 . . . . Part Schematic 6 | . . . . . . . . . 1 . . . . 1 . . 4 . . . . . . . . . . . . . . Robot Analysis 5 | . . . 1 . . . . . . . . . . . . . 4 . . . . . . . . . . . . . . Prototype ID Bank 8 | . . . . 1 . . . . 1 . . . . 1 . . 4 . . . . . . . . . . . 1 . . Open Door 10 | . . . . 4 . . . . . 1 . . . . 1 . . . . . 1 1 . . . . . 1 . 1 . Branch Access Points 3 | . . . . . . . 1 . 1 . . . . 1 . . . . . . . . . . . . . . . . . Emergency Access Points 2 | . . . . . . . . . . . . . . 2 . . . . . . . . . . . . . . . . . Alert Level 1 | . . . . . . . . . . . . . . . . . . . . . . . . . . . . . 1 . . Unreport Threat 7 | . . . 1 . . . . . . . . . . . . . . . . . . . . . 1 2 . . 3 . . Locate Traps 10 | . . . 1 5 . . . . . . . . . . . . . . . . . . . . 3 . . 1 . . . Maintenance Status 1 | . . . . . . . . . . . . . . . . . . . . . . . . . 1 . . . . . . Recall Investigation 1 | . . . . . . . . . . . . . . . . . . . . . . . . . . . . . 1 . . Recall Extermination 3 | . . . . . . . . . . . . . . 1 . . . . . . . . . . . . . . 2 . . Recall Reinforcements 1 | . . . . . . . . . . . . . . . . . . . . . . . . . . . . . 1 . . Hauler Manifests 5 | . . . 1 . . . 1 . 1 . . . . 1 . . . . 1 . . . . . . . . . . . . Registered Components 2 | . . . . . . . . . 1 . . . . 1 . . . . . . . . . . . . . . . . . Registered Prototypes 1 | . . . . . . . . . . . . . . 1 . . . . . . . . . . . . . . . . . Zone Layout 13 | . . . . 3 . . . . . . . . . 1 . . . . 1 . . . . . 4 . 1 3 . . . Fabricator Hacks 3 | . . . . . . . . . 1 . . . . . . . . . 1 . . . . . . . 1 . . . . Network Status 3 | . . . . . . . . . 1 . . . . . . . . . 1 . . . . . . . 1 . . . . Repair Station Hacks 10 | . 2 . 6 2 . . . . . . . . . . . . . . . . . . . . . . . . . . . Scan Component 5 | . 1 . 3 1 . . . . . . . . . . . . . . . . . . . . . . . . . . . Repair 5 | . 1 . 3 1 . . . . . . . . . . . . . . . . . . . . . . . . . . . Recycling Unit Hacks 8 | . 1 . 2 . 1 . 1 . 2 . . . . . . . . . . . . . . . . . . . 1 . . Retrieve Components 8 | . 1 . 2 . 1 . 1 . 2 . . . . . . . . . . . . . . . . . . . 1 . . Scanalyzer 9 | . . . 1 . . . 2 . 1 . . . . 1 . . . . 2 . . . . . 2 . . . . . . Retrieve Study 9 | . . . 1 . . . 2 . 1 . . . . 1 . . . . 2 . . . . . 2 . . . . . . Garrison Access Hacks 1 | . . . . . . . . . . . . . . . . . . . . . . . . . 1 . . . . . . Seal Access 1 | . . . . . . . . . . . . . . . . . . . . . . . . . 1 . . . . . . Unauthorized Hacks 65 | . 6 . 6 7 9 . 2 . 4 . . . . 5 . . . . 7 . . . . 4 4 3 4 2 2 . . Terminals 44 | . 6 . 6 7 7 . 1 . 1 . . . . 3 . . . . 2 . . . . 1 4 . 3 1 2 . . Track 2 | . . . . . . . . . . . . . . . . . . . . . . . . . . . 2 . . . . Assimilate 6 | . . . . . . . . . 1 . . . . 2 . . . . 1 . . . . 1 . . . 1 . . . Botnet 14 | . 1 . 1 2 2 . 1 . . . . . . 1 . . . . 1 . . . . . 2 . 1 . 2 . . Detonate 1 | . . . . . . . . . . . . . . . . . . . . . . . . . 1 . . . . . . Operators 1 | . . . . . . . . . . . . . . . . . . . . . . . . . 1 . . . . . . Skim 20 | . 5 . 5 5 5 . . . . . . . . . . . . . . . . . . . . . . . . . . Fabricators 5 | . . . . . . . . . 1 . . . . . . . . . 2 . . . . . . . 1 1 . . . Liberate 2 | . . . . . . . . . . . . . . . . . . . 1 . . . . . . . . 1 . . . Fabnet 3 | . . . . . . . . . 1 . . . . . . . . . 1 . . . . . . . 1 . . . . Repair Stations . | . . . . . . . . . . . . . . . . . . . . . . . . . . . . . . . . Recycling Units 16 | . . . . . 2 . 1 . 2 . . . . 2 . . . . 3 . . . . 3 . 3 . . . . . Tunnel 2 | . . . . . 2 . . . . . . . . . . . . . . . . . . . . . . . . . . Fedlink 14 | . . . . . . . 1 . 2 . . . . 2 . . . . 3 . . . . 3 . 3 . . . . . Scanalyzers . | . . . . . . . . . . . . . . . . . . . . . . . . . . . . . . . . Garrison Access . | . . . . . . . . . . . . . . . . . . . . . . . . . . . . . . . . Data Cores Recovered 2 | . . . . . . . . . . . . . . . . . . . . . . . . . . . 1 . 1 . . Used 2 | . . . . . . . . . . . . . . . . . . . . . . . . . . . 1 . 1 . . Hacking Detections 88 | . 6 . 9 8 6 . 3 . 7 1 . . . 4 . . . . 11 . . . . 1 9 4 3 4 11 1 . Full Trace Events 2 | . . . . . . . . . . . . . . . . . . . . . . . . . . 1 . . 1 . . Feedback Events . | . . . . . . . . . . . . . . . . . . . . . . . . . . . . . . . . Feedback Blocked . | . . . . . . . . . . . . . . . . . . . . . . . . . . . . . . . . Robot Schematics Acquired 10 | . . . . . . . . . . . . 4 . . . . . . . . . . . . . 3 . 3 . . . Robots Built . | . . . . . . . . . . . . . . . . . . . . . . . . . . . . . . . . Authchips . | . . . . . . . . . . . . . . . . . . . . . . . . . . . . . . . . Time . | . . . . . . . . . . . . . . . . . . . . . . . . . . . . . . . . Total Robot Build Rating . | . . . . . . . . . . . . . . . . . . . . . . . . . . . . . . . . Part Schematics Acquired 42 | . . . . . . . . . 1 . . 15 . 1 . . 4 . . . . . . . . 7 . 14 . . . Parts Built . | . . . . . . . . . . . . . . . . . . . . . . . . . . . . . . . . Authchips . | . . . . . . . . . . . . . . . . . . . . . . . . . . . . . . . . Time . | . . . . . . . . . . . . . . . . . . . . . . . . . . . . . . . . Total Part Build Rating . | . . . . . . . . . . . . . . . . . . . . . . . . . . . . . . . . Part Studies Acquired 9 | . . . 1 . . . 2 . 1 . . . . 1 . . . . 2 . . . . . 2 . . . . . . Parts Repaired 5 | . 1 . 3 1 . . . . . . . . . . . . . . . . . . . . . . . . . . . Time 211 | . 51 . 128 32 . . . . . . . . . . . . . . . . . . . . . . . . . . . Parts Recycled . | . . . . . . . . . . . . . . . . . . . . . . . . . . . . . . . . Recycled Matter . | . . . . . . . . . . . . . . . . . . . . . . . . . . . . . . . . Retrieved Matter . | . . . . . . . . . . . . . . . . . . . . . . . . . . . . . . . . Retrieved Components 34 | . 3 . 18 . 8 . 2 . 2 . . . . . . . . . . . . . . . . . . . 1 . . Parts Scanalyzed . | . . . . . . . . . . . . . . . . . . . . . . . . . . . . . . . . Part Schematics Acquired . | . . . . . . . . . . . . . . . . . . . . . . . . . . . . . . . . Parts Damaged . | . . . . . . . . . . . . . . . . . . . . . . . . . . . . . . . . Bothacking | -11 -10 -10 -9 -9 -9 -9 -6 -6 -6 -6 -6 -6 -5 -5 -5 -5 -5 -4 -4 -4 -4 -4 -3 -3 -3 -3 -2 -2 -1 -1 -1 ------------ Run | Yrd Mat Min Mat Sto Rec Scr Fac Was Fac Low Low Zio Pro Fac Upp Upp Zhi Pro Fac Upp Upp War Pro Res Qua Frg Res Tes Acc Com Ac0 Used RIF Installer . | . . . . . . . . . . . . . . . . . . . . . . . . . . . . . . . . Robots Hacked 22 | . . . . . . . . . . . . . . . . . . . . . . 1 . . . 16 . 2 3 . . Non-combat . | . . . . . . . . . . . . . . . . . . . . . . . . . . . . . . . . Combat 22 | . . . . . . . . . . . . . . . . . . . . . . 1 . . . 16 . 2 3 . . Robot Hacks Applied . | . . . . . . . . . . . . . . . . . . . . . . . . . . . . . . . . Relay Couplers Released 2 | . . . . . . . . . . . . . . . . . . . . . . . . . . 2 . . . . . Machine Destruction 2 | . . . . . . . . . . . . . . . . . . . . . . . . . . 2 . . . . . Fabnet Peak Effective % 3 | . . . . . . . . . . . . . 3 3 3 3 3 1 1 1 1 1 3 3 3 3 1 1 3 3 3 Autooverrided 22 | . . . . . . . . . . . . . . . . . . . . . . 1 . . . 16 . 2 3 . . Robots Rewired . | . . . . . . . . . . . . . . . . . . . . . . . . . . . . . . . . Allies Hacked 2 | . . . . . . . . . . . . . . . . . . . . . . . . . . 2 . . . . . Hacks Repelled . | . . . . . . . . . . . . . . . . . . . . . . . . . . . . . . . . Allies | -11 -10 -10 -9 -9 -9 -9 -6 -6 -6 -6 -6 -6 -5 -5 -5 -5 -5 -4 -4 -4 -4 -4 -3 -3 -3 -3 -2 -2 -1 -1 -1 -------- Run | Yrd Mat Min Mat Sto Rec Scr Fac Was Fac Low Low Zio Pro Fac Upp Upp Zhi Pro Fac Upp Upp War Pro Res Qua Frg Res Tes Acc Com Ac0 Total Allies 44 | . . . . 10 . . . 1 1 . . . . 1 . . . . 1 . . 1 . 1 . 17 . 3 6 2 . Largest Group 10 | . . . . 10 5 5 5 1 1 1 1 . . 1 1 . . . 1 . . . . 1 . 3 . 1 4 2 . Highest-Rated Group 443 | . . . . 88 48 48 48 31 10 10 10 . . 26 26 . . . 26 . . . . 10 . 185 . 64 443 263 . Highest-Rated Ally 135 | . . . . 16 16 16 16 31 10 10 10 . . 26 26 . . . 26 . . . . 10 . 82 . 64 135 132 . Total Orders 3 | . . . . . . . 1 . . . . . . . . . . . . . . . . . . . . . . . 2 STAY 1 | . . . . . . . 1 . . . . . . . . . . . . . . . . . . . . . . . . RETURN 2 | . . . . . . . . . . . . . . . . . . . . . . . . . . . . . . . 2 Ally Attacks 150 | . . . . 40 12 . . . . . . . . . . . . . . . . 2 . . . 31 . 2 20 2 41 Total Damage 3628 | . . . . 288 123 . . . . . . . . . . . . . . . . 15 . . . 720 . 66 391 2 2023 Kills 12 | . . . . 4 3 . . . . . . . . . . . . . . . . . . . . 1 . . 2 . 2 Allies Corrupted 3 | . . . . . . . . . . . . . . . . . . . . . . . . . . 1 . 1 . . 1 Allies Melted 4 | . . . . . . . . . . . . . . . . . . . . . . 4 . . . . . . . . . Intel | -11 -10 -10 -9 -9 -9 -9 -6 -6 -6 -6 -6 -6 -5 -5 -5 -5 -5 -4 -4 -4 -4 -4 -3 -3 -3 -3 -2 -2 -1 -1 -1 ------- Run | Yrd Mat Min Mat Sto Rec Scr Fac Was Fac Low Low Zio Pro Fac Upp Upp Zhi Pro Fac Upp Upp War Pro Res Qua Frg Res Tes Acc Com Ac0 Active Infowar (turns) 14292 | 15 902 1021 696 . . . 231 20 251 164 222 265 154 361 107 90 59 183 404 97 187 979 123 146 398 3691 662 851 855 746 412 Optics 10351 | . . . . . . . . . . . . . . 361 107 90 59 183 404 97 187 979 123 146 398 3691 662 851 855 746 412 Sensors 3961 | . . . . . . . 231 20 244 164 213 265 132 350 107 77 33 183 404 97 179 148 114 140 349 511 . . . . . Zeronet 352 | . . . . . . . . . . . . . . . . . . . . . . . . . . . . . 200 152 . Structural 3829 | . . . . . . . 229 20 251 164 220 265 154 361 107 90 59 183 404 97 187 147 123 140 360 268 . . . . . Seismic 2634 | 15 902 1021 696 . . . . . . . . . . . . . . . . . . . . . . . . . . . . Cloaking 4510 | . . . . . . . . . . . . . . . . . . . . . . 1 . . 3 2280 610 828 715 73 . Jamming 1661 | . . . . . . . . . . . . . . 1 . . 1 . . . 8 834 . . 349 468 . . . . . Robot Analysis Total 5 | . . . 1 . . . . . . . . . . . . . 4 . . . . . . . . . . . . . . Derelict Logs Recovered 11 | . . 1 . . . . . . . 1 2 1 1 . 1 . . . . 1 3 . . . . . . . . . . Drone Launches 11 | . . . . . . . . . . . . . . . . . . . . . . . . . . . . . . 6 5 Drone Recoveries 6 | . . . . . . . . . . . . . . . . . . . . . . . . . . . . . . . 6 Exploration | -11 -10 -10 -9 -9 -9 -9 -6 -6 -6 -6 -6 -6 -5 -5 -5 -5 -5 -4 -4 -4 -4 -4 -3 -3 -3 -3 -2 -2 -1 -1 -1 ------------- Run | Yrd Mat Min Mat Sto Rec Scr Fac Was Fac Low Low Zio Pro Fac Upp Upp Zhi Pro Fac Upp Upp War Pro Res Qua Frg Res Tes Acc Com Ac0 Turns Passed 22087 | 119 902 1021 2067 1229 1159 3932 231 20 251 164 222 265 154 361 107 90 59 183 404 97 187 979 123 146 398 3691 662 851 855 746 412 Spaces Moved 27471 | 60 508 502 881 483 549 1759 422 72 723 474 616 936 426 854 323 272 155 413 1209 287 628 1561 234 384 960 6511 950 1501 1476 661 681 Core 12 | 12 . . . . . . . . . . . . . . . . . . . . . . . . . . . . . . . Treads 3445 | . . 65 881 483 549 1467 . . . . . . . . . . . . . . . . . . . . . . . . . Legs 993 | 48 508 437 . . . . . . . . . . . . . . . . . . . . . . . . . . . . . Wheels 292 | . . . . . . 292 . . . . . . . . . . . . . . . . . . . . . . . . . Hover 5521 | . . . . . . . . . . . . . . . . . . . . . . . . . . 252 950 1501 1476 661 681 Flight 17208 | . . . . . . . 422 72 723 474 616 936 426 854 323 272 155 413 1209 287 628 1561 234 384 960 6259 . . . . . Fastest Speed 22 | 50 120 160 160 200 200 175 28 28 28 28 28 28 28 28 28 28 28 28 28 28 28 26 27 24 24 22 29 29 24 24 24 Average Speed 54 | 112 137 186 185 200 200 195 28 28 28 28 28 28 28 28 28 28 28 28 28 28 28 27 27 24 24 24 29 33 24 29 24 Slowest Speed 300 | 150 190 240 200 200 200 200 28 28 28 28 28 28 28 104 28 28 28 28 28 28 28 94 27 24 27 300 29 87 24 81 25 Overloaded Moves . | . . . . . . . . . . . . . . . . . . . . . . . . . . . . . . . . Propulsion Burnouts . | . . . . . . . . . . . . . . . . . . . . . . . . . . . . . . . . Robots Hopped 49 | . . . . . . . 1 . 4 . . . . 3 . 2 . . 8 . . . . 3 12 16 . . . . . Potential Cave-ins . | . . . . . . . . . . . . . . . . . . . . . . . . . . . . . . . . Cave-ins Triggered . | . . . . . . . . . . . . . . . . . . . . . . . . . . . . . . . . Teleports 3 | . . . . . . . . . . . . . . . . . . . . . . . . . . 1 . . . 1 1 Exploration Rate (%) 56 | 4 91 97 88 66 74 91 15 61 23 59 72 84 57 30 58 53 63 68 32 48 81 83 55 13 87 65 16 90 38 22 29 Regions Visited 31 Branch Regions 21 Pre-discovered Areas 20 | . 3 1 2 3 3 1 . . 1 1 . 1 1 . . . 3 . . . . . . . . . . . . . . Known Exits Taken 24 | . 1 . . 1 1 1 . . 1 1 1 1 1 1 1 1 1 1 1 1 1 1 1 1 1 1 1 . 1 . . Unknown Exits Taken 5 | 1 . 1 1 . . . . . . . . . . . . . . . . . . . . . . . . 1 . 1 . Scrap Searched 28 | . . 1 . . . 7 . . . 3 5 3 2 . 2 . . . . 1 4 . . . . . . . . . . Spaces Dug 272 | . 1 . . . . . 18 . 11 2 10 . 4 20 2 3 . 4 14 5 15 11 7 6 30 14 31 11 41 12 . Terrain Destroyed 904 | . 1 . . . . . 18 . 11 2 40 . 38 65 2 3 . 4 14 5 30 283 7 6 51 139 55 23 81 18 8 Melee 126 | . 1 . . . . . 17 . 11 1 3 . 3 17 2 1 . 4 12 3 . 11 5 6 8 3 2 7 9 . . Projectile 138 | . . . . . . . 1 . . 1 . . 1 3 . 2 . . 2 2 . . 2 . 6 33 33 4 36 12 . AOE 578 | . . . . . . . . . . . 37 . 34 45 . . . . . . 30 272 . . 37 99 14 . 2 . 8 Terrain Rammed . | . . . . . . . . . . . . . . . . . . . . . . . . . . . . . . . . Walls Destroyed . | . . . . . . . . . . . . . . . . . . . . . . . . . . . . . . . . Machines Disabled . | . . . . . . . . . . . . . . . . . . . . . . . . . . . . . . . . Actions | -11 -10 -10 -9 -9 -9 -9 -6 -6 -6 -6 -6 -6 -5 -5 -5 -5 -5 -4 -4 -4 -4 -4 -3 -3 -3 -3 -2 -2 -1 -1 -1 --------- Run | Yrd Mat Min Mat Sto Rec Scr Fac Was Fac Low Low Zio Pro Fac Upp Upp Zhi Pro Fac Upp Upp War Pro Res Qua Frg Res Tes Acc Com Ac0 Total 33125 | 90 649 547 1176 628 595 2253 500 71 741 502 654 936 444 923 333 279 163 469 1242 295 635 2043 284 414 1072 8359 1266 1734 1825 1151 852 Wait 3532 | 8 87 3 168 58 36 466 30 . 7 25 26 . . 13 6 3 . 50 13 . . 320 39 14 51 1249 223 94 166 368 9 Move 27349 | 59 507 501 880 482 548 1758 420 71 714 473 615 935 425 847 322 267 154 412 1192 286 627 1560 233 378 937 6482 949 1500 1475 660 680 Hop 42 | . . . . . . . 1 . 4 . . . . 3 . 2 . . 8 . . . . 2 10 12 . . . . . Pick Up 216 | 5 8 3 23 3 . 10 5 . . . . . 1 5 1 . 1 . 3 . . 8 . . 8 107 2 1 7 8 7 Fast Attach 88 | 7 4 2 6 1 . . . . 1 . 2 . . 4 . . 1 . 3 . 1 6 . 1 7 30 . 5 1 3 3 Attach 153 | . . . 2 . . 2 10 . . 1 1 . 3 7 . 1 2 2 3 2 1 32 3 2 10 42 2 1 2 7 15 Detach 107 | . . . 2 . . . 1 . . 1 1 . 2 5 . 1 1 . 3 2 1 34 2 3 6 31 . 2 1 5 3 Swap 259 | . 5 5 15 21 . 2 1 . 2 . 2 . 4 3 . 1 1 . . . 2 3 . . 8 59 39 21 43 16 6 Drop 229 | . 6 9 16 8 . 15 11 . 1 . 1 . . 8 1 1 . . 1 . 1 17 . . 5 107 1 8 4 7 1 Fire 659 | 11 30 20 63 39 4 . 3 . . 1 3 . 4 8 . 2 . . 2 2 2 49 2 . 12 138 48 76 112 24 4 Melee 422 | . 2 . . 5 . . 18 . 12 1 3 1 5 20 3 1 3 5 14 3 . 14 5 14 18 60 2 26 14 49 124 Ram . | . . . . . . . . . . . . . . . . . . . . . . . . . . . . . . . . Kick 4 | . . 4 . . . . . . . . . . . . . . . . . . . . . . . . . . . . . Crush 9 | . . . 1 1 7 . . . . . . . . . . . . . . . . . . . . . . . . . . Escape Stasis 43 | . . . . 2 . . . . . . . . . . . . . . . . . . . . . 41 . . . . . Rewire 5 | . . . . . . . . . . . . . . . . . . . . . . . . . . 1 . . . 4 . Trap . | . . . . . . . . . . . . . . . . . . . . . . . . . . . . . . . . Miscellaneous 8 | . . . . 8 . . . . . . . . . . . . . . . . . . . . . . . . . . . Route ------- -11/Scrapyard -10/Materials (discovered 6 exits: *Mat x3 / *Min x2 / Sub) -10/Mines (discovered 3 exits: *Mat x2 / *Sub) -9/Materials (discovered 6 exits: *Mat x3 / [*Min] / *Sto x2) -9/Storage (discovered 2 exits: *Mat / *Rec) -9/Recycling (discovered 2 exits: *Fac / *Scr) -9/Scraptown (discovered 2 exits: *Fac x2) -6/Factory (discovered 2 exits: Low x2) -6/Waste -6/Factory (discovered 2 exits: *Low x2) -6/Lower Caves -6/Lower Caves (discovered 2 exits: *Fac / *Zio) -6/Zion -5/Proximity Caves -5/Factory (discovered 3 exits: *Fac / *Upp x2) -5/Upper Caves -5/Upper Caves -5/Zhirov -4/Proximity Caves -4/Factory (discovered 3 exits: *Res / *Upp x2) -4/Upper Caves -4/Upper Caves -4/Warlord -3/Proximity Caves -3/Research -3/Quarantine (discovered 3 exits: *Res / *Sec / *Frg) -3/Protoforge -2/Research -2/Testing -1/Access (discovered 2 exits: Sur / *Com) -1/Command (discovered 3 exits: *Sur x2 / [*Ac0]) -1/Access_0 Near Former Tau Ceti IV History --------- Turn | Location | Event 8 | -11/Scrapyard | Discovered new exit (range 16) 120 | -11/Scrapyard | Entered Materials 308 | -10/Materials | Build established: Mutant 366 | -10/Materials | Discovered new exit (range 9) 508 | -10/Materials | Discovered new exit (range 7) 650 | -10/Materials | Discovered new exit (range 4) 664 | -10/Materials | Destroyed 7 combat bots 677 | -10/Materials | Discovered new exit (range 5) 793 | -10/Materials | Learned location of Storage (-9) 825 | -10/Materials | Discovered new exit (range 11) 835 | -10/Materials | Learned Storage emergency access door positions 867 | -10/Materials | Learned location of Mines (-10) 889 | -10/Materials | Identified exit to Mines 889 | -10/Materials | Identified exit to Subcaves 901 | -10/Materials | Learned Recycling recycling unit intel 902 | -10/Materials | Learned Storage stockpile data 903 | -10/Materials | Repaired Imp. Assault Rifle 909 | -10/Materials | Loaded intel: 2 recycling unit locations 927 | -10/Materials | Learned location of 2 exits from Materials 1022 | -10/Materials | Entered Mines 1121 | -10/Mines | Received a Rocket Launcher from a helpful Derelict 1253 | -10/Mines | A weapon hastily lodged in a ceiling crevice suddenly fell to the ground 1268 | -10/Mines | Discovered new exit (range 14) 1354 | -10/Mines | Build established: Scavenger-Mutant 1746 | -10/Mines | Build established: Mutant 1766 | -10/Mines | Discovered new exit (range 7) 1976 | -10/Mines | Discovered exit to Subcaves (range 13) 2043 | -10/Mines | Entered Materials 2043 | -9/Materials | Evolved 2 slots: Propulsion x1, Weapon x1 2044 | -9/Materials | Identified exit to Materials 2305 | -9/Materials | Discovered new exit (range 14) 2366 | -9/Materials | Build established: Gunner 2688 | -9/Materials | Discovered new exit (range 4) 2883 | -9/Materials | Repaired Imp. Assault Rifle 2935 | -9/Materials | Repaired Imp. Assault Rifle 3288 | -9/Materials | Repaired Lgt. Armor Plating 3553 | -9/Materials | Learned location of 3 exits from Materials 3561 | -9/Materials | Learned Materials stockpile data 3574 | -9/Materials | Learned location of Zion (-6) 3597 | -9/Materials | Learned Materials stockpile data 3772 | -9/Materials | Discovered new exit (range 12) 3778 | -9/Materials | Build established: Tank 4110 | -9/Materials | Entered Storage 4111 | -9/Storage | Identified exit to Recycling 4259 | -9/Storage | Repaired Med. Armor Plating 4326 | -9/Storage | Core integrity fell below 50% 4591 | -9/Storage | Assisted by bots powering up and referring to "LRC-V3" 4713 | -9/Storage | Learned Materials emergency access door positions 4768 | -9/Storage | Loaded intel: 20 interactive machine locations 4813 | -9/Storage | Loaded intel: 15 terminal locations 4913 | -9/Storage | Learned 4 Recycling zone layouts 4921 | -9/Storage | Discovered exit to Materials (range 14) 4949 | -9/Storage | Learned location of 1 exit from Storage 5051 | -9/Storage | Build established: Commander-Tank 5271 | -9/Storage | Lost 3 allies 5333 | -9/Storage | Used back door to open Recycling access 5339 | -9/Storage | Entered Recycling 5339 | -9/Recycling | Accompanied by 5 allies 5340 | -9/Recycling | Identified exit to Factory 5341 | -9/Recycling | Loaded intel: 4 recycling unit locations 6217 | -9/Recycling | Learned Materials trap positions 6242 | -9/Recycling | Learned Materials security intel 6258 | -9/Recycling | Learned Materials stockpile data 6265 | -9/Recycling | Identified exit to Scraptown 6311 | -9/Recycling | Learned Materials trap positions 6422 | -9/Recycling | Scanned before Scraplab entrance 6450 | -9/Recycling | Entered Scraplab 6498 | -9/Recycling | Entered Scraptown 6498 | -9/Scraptown | Accompanied by 5 allies 7039 | -9/Scraptown | Discovered new exit (range 5) 7191 | -9/Scraptown | Visited Bundlers 7333 | -9/Scraptown | Visited Assassins FH 7553 | -9/Scraptown | Build established: Commander-Mutant 7726 | -9/Scraptown | Visited Shadow of the Wyrm 7768 | -9/Scraptown | Visited Comm Corps 7892 | -9/Scraptown | Visited TADAMA 7942 | -9/Scraptown | Visited Cyclists 7980 | -9/Scraptown | Visited UFD Registry 7980 | -9/Scraptown | Registered with UFD as "Quantumdome" 8056 | -9/Scraptown | Visited A0-MCA Data Center 8068 | -9/Scraptown | Given a C+ rating by A0-MCA 8074 | -9/Scraptown | Found A0-MCA's Component Scanner 8115 | -9/Scraptown | Visited Sword Containment 8147 | -9/Scraptown | Visited Abandonware Association 8379 | -9/Scraptown | Visited Derelict Rescue Squad 8425 | -9/Scraptown | Visited Infowarlord's Domain 8441 | -9/Scraptown | Found Exp. Sensor Array 8630 | -9/Scraptown | Visited Curators Association 8666 | -9/Scraptown | Visited LU-1G1's Boring Crew 8694 | -9/Scraptown | Visited Chapter 10 8766 | -9/Scraptown | Visited Scrap Suit Storage 9621 | -9/Scraptown | Entered Cyclist Reading Room 9710 | -9/Scraptown | Visited Awakened 10335 | -9/Scraptown | Met Optimus 10335 | -9/Scraptown | Accepted into 0bPrime 10423 | -9/Scraptown | Discovered new exit (range 3) 10424 | -9/Scraptown | Identified exit to Factory 10430 | -9/Scraptown | Entered Factory 10430 | -6/Factory | Accompanied by 5 allies 10430 | -6/Factory | Evolved 6 slots: Propulsion x2, Utility x4 10494 | -6/Factory | Identified exit to Lower Caves 10641 | -6/Factory | Loaded intel: 8 recycling unit locations 10661 | -6/Factory | Sucked down chute 10661 | -6/Factory | Entered Waste 10662 | -6/Waste | Met a frightened Derelict 10670 | -6/Waste | Spotted C-40 Crusher 10670 | -6/Waste | Spotted C-40 Crusher 10675 | -6/Waste | Spotted C-40 Crusher 10676 | -6/Waste | Discovered new exit (range 16) 10681 | -6/Waste | Identified exit to Factory 10681 | -6/Waste | Entered Factory 10698 | -6/Factory | Loaded intel: 8 recycling unit locations 10698 | -6/Factory | Learned location of Protoforge (-3) 10932 | -6/Factory | Entered Lower Caves 10932 | -6/Lower Caves | Accompanied by 1 ally 10960 | -6/Lower Caves | Entered an active Warlord outpost 10960 | -6/Lower Caves | Build established: Scout 10962 | -6/Lower Caves | Learned Factory stockpile data 10962 | -6/Lower Caves | Learned Factory terminal intel 10981 | -6/Lower Caves | Learned 4 Factory zone layouts 11015 | -6/Lower Caves | Discovered new exit (range 15) 11019 | -6/Lower Caves | Identified exit to Lower Caves 11096 | -6/Lower Caves | Entered another Lower Caves area 11096 | -6/Lower Caves | Accompanied by 1 ally 11105 | -6/Lower Caves | Discovered new exit (range 5) 11111 | -6/Lower Caves | Learned 4 Factory zone layouts 11119 | -6/Lower Caves | Identified exit to Factory 11197 | -6/Lower Caves | Learned Factory interactive machine intel 11220 | -6/Lower Caves | Found Alien Artifact 11220 | -6/Lower Caves | Identified Core Expander 11220 | -6/Lower Caves | Installed Core Expander, added new Power slot 11268 | -6/Lower Caves | Discovered new exit (range 8) 11318 | -6/Lower Caves | Identified exit to Zion 11318 | -6/Lower Caves | Entered Zion 11340 | -6/Zion | Discovered new exit (range 16) 11359 | -6/Zion | Learned 4 Factory zone layouts 11413 | -6/Zion | Learned Factory emergency access door positions 11441 | -6/Zion | Turned away by Imprinter 11583 | -6/Zion | Identified exit to Proximity Caves 11583 | -6/Zion | Entered Proximity Caves 11717 | -5/Proximity Caves | Discovered exit to Factory (range 5) 11737 | -5/Proximity Caves | Entered Factory 11737 | -5/Factory | Evolved 2 slots: Utility x2 11738 | -5/Factory | Identified exit to Upper Caves 11741 | -5/Factory | Loaded intel: 54 interactive machine locations 11742 | -5/Factory | Loaded intel: 26 terminal locations 11785 | -5/Factory | Loaded intel: 8 recycling unit locations 11786 | -5/Factory | Discovered new exit (range 6) 12084 | -5/Factory | Central database locked down 12098 | -5/Factory | Entered Upper Caves 12098 | -5/Upper Caves | Accompanied by 1 ally 12119 | -5/Upper Caves | Encountered a Warlord checkpoint 12135 | -5/Upper Caves | Found Alien Artifact 12155 | -5/Upper Caves | Build established: Hacker-Scout 12177 | -5/Upper Caves | Learned 4 Factory zone layouts 12197 | -5/Upper Caves | Discovered new exit (range 9) 12199 | -5/Upper Caves | Identified exit to Upper Caves 12205 | -5/Upper Caves | Entered another Upper Caves area 12242 | -5/Upper Caves | Ambushed by research squad 12290 | -5/Upper Caves | Discovered new exit (range 17) 12294 | -5/Upper Caves | Identified exit to Zhirov 12295 | -5/Upper Caves | Entered Zhirov 12295 | -5/Zhirov | Discovered new exit (range 3) 12301 | -5/Zhirov | Met Zhirov 12306 | -5/Zhirov | Learned location of Quarantine (-3) 12306 | -5/Zhirov | Learned location of Testing (-2) 12306 | -5/Zhirov | Learned location of Command (-1) 12310 | -5/Zhirov | Zhirov requested help retrieving the SGEMP Prototype 12314 | -5/Zhirov | Found Alien Artifact 12314 | -5/Zhirov | Identified Integrated Reactor 12314 | -5/Zhirov | Installed Integrated Reactor, increased core energy generation (+10) 12323 | -5/Zhirov | Found Alien Artifact 12354 | -5/Zhirov | Identified exit to Proximity Caves 12354 | -5/Zhirov | Entered Proximity Caves 12356 | -4/Proximity Caves | Spotted B-86 Titan 12510 | -4/Proximity Caves | Discovered new exit (range 14) 12536 | -4/Proximity Caves | Identified exit to Factory 12537 | -4/Proximity Caves | Entered Factory 12537 | -4/Factory | Evolved 2 slots: Propulsion x1, Utility x1 12555 | -4/Factory | Found Exp. Signal Interpreter 12572 | -4/Factory | Loaded intel: 8 recycling unit locations 12775 | -4/Factory | Build established: Scout 12810 | -4/Factory | Discovered new exit (range 6) 12811 | -4/Factory | Identified exit to Research 12868 | -4/Factory | Discovered new exit (range 20) 12873 | -4/Factory | Discovered new exit (range 8) 12873 | -4/Factory | Identified exit to Upper Caves 12941 | -4/Factory | Entered Upper Caves 12950 | -4/Upper Caves | Learned Research emergency access door positions 12980 | -4/Upper Caves | Attracted the attention of an 0b10 checkpoint 13027 | -4/Upper Caves | Discovered new exit (range 5) 13028 | -4/Upper Caves | Encountered a Warlord checkpoint 13037 | -4/Upper Caves | Identified exit to Upper Caves 13038 | -4/Upper Caves | Entered another Upper Caves area 13053 | -4/Upper Caves | Found DCF Scrap (15 items) 13138 | -4/Upper Caves | Discovered new exit (range 11) 13188 | -4/Upper Caves | Learned Research emergency access door positions 13192 | -4/Upper Caves | Learned location of 1 exit from Proximity Caves 13225 | -4/Upper Caves | Identified exit to Warlord 13225 | -4/Upper Caves | Entered Warlord 13278 | -4/Warlord | Found Exp. Cloaking Device 13354 | -4/Warlord | Rebuked by Warlord 13374 | -4/Warlord | Warlord's base attacked by MAIN.C 13401 | -4/Warlord | Found Vortex Lance 13668 | -4/Warlord | Warlord forces counterattacked 13708 | -4/Warlord | Spotted B-90 Cyclops 13718 | -4/Warlord | Spotted Striker 13720 | -4/Warlord | Destroyed 8 combat bots 13721 | -4/Warlord | Spotted B-86 Titan 13739 | -4/Warlord | Spotted Executioner 13740 | -4/Warlord | Build established: Infiltrator-Sprinter 13818 | -4/Warlord | P-70 Sage assimilated allied L7-UXN(M) 13826 | -4/Warlord | Spotted Striker 13869 | -4/Warlord | Lost 26 allies 13914 | -4/Warlord | Spotted Striker 13960 | -4/Warlord | Spotted Executioner 13960 | -4/Warlord | Spotted Executioner 13970 | -4/Warlord | Spotted Executioner 14049 | -4/Warlord | Warlord base infiltrated, sounded retreat 14050 | -4/Warlord | Enhanced Grunt warped into view 14050 | -4/Warlord | Enhanced Grunt warped into view 14050 | -4/Warlord | Enhanced Grunt warped into view 14050 | -4/Warlord | Enhanced Demolisher warped into view 14050 | -4/Warlord | Enhanced Demolisher warped into view 14050 | -4/Warlord | Enhanced Demolisher warped into view 14085 | -4/Warlord | Spotted B-90 Cyclops 14090 | -4/Warlord | Lost 13 allies 14195 | -4/Warlord | Spotted Executioner 14199 | -4/Warlord | Discovered new exit (range 12) 14201 | -4/Warlord | Identified exit to Proximity Caves 14204 | -4/Warlord | Entered Proximity Caves 14229 | -3/Proximity Caves | Lost 3 allies 14279 | -3/Proximity Caves | Spotted B-86 Titan 14327 | -3/Proximity Caves | Entered Research 14327 | -3/Research | Evolved 2 slots: Propulsion x2 14391 | -3/Research | Loaded intel: 5 recycling unit locations 14471 | -3/Research | Discovered new exit (range 10) 14471 | -3/Research | Spotted B-90 Cyclops 14473 | -3/Research | Identified exit to Quarantine 14473 | -3/Research | Entered Quarantine 14565 | -3/Quarantine | Found Fusion Bomb Launcher 14733 | -3/Quarantine | Found Alien Artifact 14742 | -3/Quarantine | Discovered new exit (range 12) 14758 | -3/Quarantine | Found Alien Slashing Weapon 14758 | -3/Quarantine | Identified Sigix Broadsword 14775 | -3/Quarantine | Identified exit to Research 14821 | -3/Quarantine | Spotted Fortress 14839 | -3/Quarantine | Discovered new exit (range 6) 14839 | -3/Quarantine | Discovered new exit (range 7) 14840 | -3/Quarantine | Identified exit to Section 7 14841 | -3/Quarantine | Identified exit to Protoforge 14843 | -3/Quarantine | Identified Subatomic Replicator 14843 | -3/Quarantine | Used Subatomic Replicator to create Alien Artifact 14871 | -3/Quarantine | Entered Protoforge 14915 | -3/Protoforge | Discovered exit to Research (range 6) 15027 | -3/Protoforge | Superfortress began startup sequence 15117 | -3/Protoforge | Spotted EXE-6 15117 | -3/Protoforge | Spotted EXE-6 15121 | -3/Protoforge | Spotted Decapitator 15121 | -3/Protoforge | Spotted Decapitator 15127 | -3/Protoforge | UFD initiated attack on Protoforge 15127 | -3/Protoforge | Loaded intel: 3 recycling unit locations 15146 | -3/Protoforge | Found Cep. XC Strikerail 15147 | -3/Protoforge | Found Exp. Core Analyzer 15150 | -3/Protoforge | Found Cep. XC Strikerail 15163 | -3/Protoforge | Optimus greeted in Protoforge 15220 | -3/Protoforge | Identified Dimensional Node Initializer 15223 | -3/Protoforge | Found Dimensional Node Initializer 15226 | -3/Protoforge | Found Dimensional Node Initializer 15229 | -3/Protoforge | Found Dimensional Node Initializer 15233 | -3/Protoforge | Initialized slip node 15254 | -3/Protoforge | Local machine network offline 15258 | -3/Protoforge | Met 7R-MNS 15259 | -3/Protoforge | Lost 3 allies 15339 | -3/Protoforge | Identified Supercharged TR 15339 | -3/Protoforge | Warped through subspace to slip node 15360 | -3/Protoforge | Spotted Executioner 15368 | -3/Protoforge | Spotted Immortal 15372 | -3/Protoforge | Lost 4 parts (2n1u1w) 15380 | -3/Protoforge | Spotted Striker 15402 | -3/Protoforge | Found Cep. NT7 Matterbank 15404 | -3/Protoforge | Found Cep. Antimissile System 15406 | -3/Protoforge | Found Cep. Zero-point Core 15412 | -3/Protoforge | Lost 17 allies 15412 | -3/Protoforge | Found Cep. Zero-point Core 15451 | -3/Protoforge | Forge Plexus network access discovered 15455 | -3/Protoforge | Found Centrium Heavy Armor Plating 15594 | -3/Protoforge | UFD reported confirmed Drillbomb installation 15604 | -3/Protoforge | Spotted Immortal 15648 | -3/Protoforge | Destroyed Immortal 15658 | -3/Protoforge | Spotted Decapitator 15658 | -3/Protoforge | Spotted Decapitator 15658 | -3/Protoforge | Spotted Decapitator 15687 | -3/Protoforge | Build established: Scavenger-Sprinter 15707 | -3/Protoforge | Destroyed Decapitator 15712 | -3/Protoforge | Destroyed Decapitator 15743 | -3/Protoforge | Found Exp. System Purifier 15791 | -3/Protoforge | Found Cep. Fieldthrust Drive 15836 | -3/Protoforge | Found Cep. RG22 Armor 15838 | -3/Protoforge | Found Cep. Reaction Jets 15839 | -3/Protoforge | Found Exp. Force Field 15842 | -3/Protoforge | Found Exp. Force Field 15847 | -3/Protoforge | Found Exp. Remote Shield 15940 | -3/Protoforge | Spotted V242-g 15944 | -3/Protoforge | Found Cep. Antigrav Storage Unit 15949 | -3/Protoforge | Found Cep. Antigrav Storage Unit 15951 | -3/Protoforge | Spotted V860-x 15951 | -3/Protoforge | Spotted V159-b 15952 | -3/Protoforge | Found Cep. Matter Streamer 15955 | -3/Protoforge | Found Cep. Chromion Battery 15958 | -3/Protoforge | Found Cep. Chromion Battery 15971 | -3/Protoforge | Spotted Decapitator 15971 | -3/Protoforge | Spotted Decapitator 15971 | -3/Protoforge | Spotted Decapitator 15975 | -3/Protoforge | Destroyed Decapitator 15975 | -3/Protoforge | Destroyed Decapitator 15979 | -3/Protoforge | Destroyed Decapitator 16002 | -3/Protoforge | Found Cep. Plasma Driver 16003 | -3/Protoforge | Found Exp. Jetlance 16005 | -3/Protoforge | Found Exp. Jetlance 16008 | -3/Protoforge | Spotted V040-h 16015 | -3/Protoforge | Found Cep. Miniperforator 16017 | -3/Protoforge | Found Cep. Heavy Railcannon 16020 | -3/Protoforge | Found Exp. Jetlance 16220 | -3/Protoforge | Found Faulty Cep. Zero-point Core 16222 | -3/Protoforge | Found Cep. Zero-point Core 16229 | -3/Protoforge | Found Faulty Cep. Zero-point Core 16314 | -3/Protoforge | Found Crosscalibrator 16325 | -3/Protoforge | Spotted Striker 16325 | -3/Protoforge | Spotted Executioner 16360 | -3/Protoforge | Found Cep. NT7 Matterbank 16362 | -3/Protoforge | Found Cep. Antigrav Storage Unit 16364 | -3/Protoforge | Found Cep. NT7 Matterbank 16387 | -3/Protoforge | Spotted Immortal 16387 | -3/Protoforge | Spotted Immortal 16387 | -3/Protoforge | Spotted V774-p 16388 | -3/Protoforge | Spotted V079-s 16390 | -3/Protoforge | Spotted V121-l 16479 | -3/Protoforge | Found Corrupted Cep. Deflector Sword 16481 | -3/Protoforge | Found Centrium Heavy Armor Plating 16482 | -3/Protoforge | Found Exp. Weapon Cycler 16564 | -3/Protoforge | Lost 4 allies 16584 | -3/Protoforge | Spotted Executioner 16623 | -3/Protoforge | UFD reported confirmed Drillbomb installation 16670 | -3/Protoforge | UFD reported confirmed Drillbomb installation 16690 | -3/Protoforge | Found Cep. Biometal Exoskeleton 16709 | -3/Protoforge | Found Faulty Cep. Biometal Exoskeleton 16775 | -3/Protoforge | Destroyed V774-p 16782 | -3/Protoforge | Found Cep. Combat Aerolev Unit 16783 | -3/Protoforge | Found Cep. Combat Aerolev Unit 16784 | -3/Protoforge | Found Cep. Combat Aerolev Unit 16877 | -3/Protoforge | Additional patrols dispatched to research labs 16880 | -3/Protoforge | Found Transdimensional Reconstructor 17006 | -3/Protoforge | UFD reported confirmed Drillbomb installation 17290 | -3/Protoforge | Found Cep. Blasthammer 17291 | -3/Protoforge | Found Cep. Thermoelectric Network 17293 | -3/Protoforge | Found Cep. Dimensional Manipulator 17294 | -3/Protoforge | Found Cep. Impact Drone Bay 17295 | -3/Protoforge | Found Cep. Cloak Mesh 17297 | -3/Protoforge | Found Cld. Directed Potential Cannon 17301 | -3/Protoforge | Found Cep. Dimensional Manipulator 17302 | -3/Protoforge | Found Cep. Thermoelectric Network 17324 | -3/Protoforge | Build established: Scavenger-Ninja 17457 | -3/Protoforge | Found Faulty Cep. Fieldthrust Drive 17488 | -3/Protoforge | Spotted Executioner 17490 | -3/Protoforge | Spotted Executioner 17521 | -3/Protoforge | Found Faulty Cep. Deflector Sword 17623 | -3/Protoforge | Destroyed Immortal 17636 | -3/Protoforge | Destroyed Immortal 17641 | -3/Protoforge | Found Exp. Jetlance 17670 | -3/Protoforge | Found Femtoactuators 17671 | -3/Protoforge | Found Cep. Weapon Articulator 17672 | -3/Protoforge | Found Cep. Weapon Articulator 17678 | -3/Protoforge | Spotted V368-n 17678 | -3/Protoforge | Found Faulty Femtoactuators 17702 | -3/Protoforge | Destroyed V368-n 17731 | -3/Protoforge | Found Exp. Kinecellerator 17733 | -3/Protoforge | Found Cep. Weapon Articulator 17735 | -3/Protoforge | Found Faulty Exp. Kinecellerator 17848 | -3/Protoforge | Spotted Decapitator 17848 | -3/Protoforge | Spotted Decapitator 17848 | -3/Protoforge | Spotted V882-g 17848 | -3/Protoforge | Spotted V920-v 17848 | -3/Protoforge | Spotted Decapitator 17853 | -3/Protoforge | Destroyed Decapitator 17857 | -3/Protoforge | Destroyed Decapitator 17869 | -3/Protoforge | Found Cep. Network Penetrator 17875 | -3/Protoforge | Found Cep. Network Penetrator 17880 | -3/Protoforge | Build established: Scavenger-Sprinter 17955 | -3/Protoforge | Found Cep. Gyrokinetic System 17962 | -3/Protoforge | Found Cep. Combat Aerolev Unit 17974 | -3/Protoforge | Found Faulty Cep. Gyrokinetic System 18261 | -3/Protoforge | Found Faulty Cep. Gyrokinetic System 18562 | -3/Protoforge | Entered Research 18562 | -2/Research | Evolved 2 slots: Power x1, Utility x1 18563 | -2/Research | Identified exit to Testing 18578 | -2/Research | Spotted B-90 Cyclops 18747 | -2/Research | Spotted B-90 Cyclops 18771 | -2/Research | Spotted Striker 18772 | -2/Research | Destroyed Striker 18786 | -2/Research | Spotted Striker 18812 | -2/Research | First assault squad dispatched 18816 | -2/Research | Destroyed 9 combat bots 18875 | -2/Research | Build established: Hacker-Sprinter 19166 | -2/Research | Unchained authorized (GL-D0S) 19224 | -2/Research | Entered Testing 19284 | -2/Testing | Found Prototype Protection 19284 | -2/Testing | Identified SHELL Armor 19319 | -2/Testing | Spotted Striker 19319 | -2/Testing | Spotted Striker 19323 | -2/Testing | Destroyed Striker 19325 | -2/Testing | Destroyed Striker 19327 | -2/Testing | Spotted Alpha 7 19362 | -2/Testing | Destroyed Alpha 7 19373 | -2/Testing | Stole the SGEMP Prototype 19459 | -2/Testing | Discovered new exit (range 13) 19474 | -2/Testing | First assault squad dispatched 19474 | -2/Testing | Garrison activated, responded to threat 19532 | -2/Testing | Destroyed 14 combat bots 19589 | -2/Testing | Local machine network offline 19621 | -2/Testing | Found Spectral Analyzer 19751 | -2/Testing | Unstable Terrabomb Derivative detonated 19818 | -2/Testing | Found Prototype Protection 19818 | -2/Testing | Identified Hvy. Regenerative Plating 19962 | -2/Testing | Destroyed 7 combat bots 20075 | -2/Testing | Entered Access 20075 | -1/Access | Evolved 2 slots: Propulsion x1, Utility x1 20076 | -1/Access | Delivered the SGEMP Prototype to Zhirov 20076 | -1/Access | Zhirov transferred Access data 20077 | -1/Access | Loaded intel: 113 machine locations 20077 | -1/Access | Loaded intel: 62 trap records 20077 | -1/Access | Identified exit to Surface 20077 | -1/Access | Discovered exit to Surface (range 115) 20077 | -1/Access | Identified exit to Command 20077 | -1/Access | Discovered exit to Command (range 102) 20146 | -1/Access | Unchained authorized (GL-D0S) 20211 | -1/Access | Destroyed 11 combat bots 20241 | -1/Access | Garrison activated, responded to threat 20265 | -1/Access | Found Gamma Bomb Array 20371 | -1/Access | Spotted Striker 20377 | -1/Access | Spotted Striker 20384 | -1/Access | Destroyed Striker 20386 | -1/Access | Destroyed Striker 20575 | -1/Access | First assault squad dispatched 20685 | -1/Access | Destroyed 9 combat bots 20725 | -1/Access | Destroyed GL-D0S 20730 | -1/Access | Found Prototype Device 20730 | -1/Access | Identified Zeronet Interface 20887 | -1/Access | Local machine network offline 20890 | -1/Access | High security lockdown imminent 20930 | -1/Access | Entered Command 21048 | -1/Command | Spotted M Guard 21048 | -1/Command | Spotted M Guard 21050 | -1/Command | Spotted Combat Programmer 21050 | -1/Command | Spotted Combat Programmer 21064 | -1/Command | Destroyed Combat Programmer 21074 | -1/Command | Destroyed Combat Programmer 21098 | -1/Command | Destroyed M Guard 21116 | -1/Command | Destroyed M Guard 21116 | -1/Command | All MAIN.C guards destroyed 21156 | -1/Command | Met MAIN.C 21161 | -1/Command | 0b10 Conduit disabled 21177 | -1/Command | Destroyed MAIN.C Shell 21179 | -1/Command | MAIN.C activated Command garrisons 21185 | -1/Command | Zhirov arrived to use SGEMP to disable MAIN.C 21200 | -1/Command | Discovered exit to Surface (range 43) 21200 | -1/Command | Discovered exit to Surface (range 87) 21200 | -1/Command | Extracted map data and part IDs from MAIN.C's data core 21204 | -1/Command | Found Exp. Powered Armor 21208 | -1/Command | Found Omega Cannon 21381 | -1/Command | Build established: Scavenger-Sprinter 21492 | -1/Command | Found Exp. System Purifier 21665 | -1/Command | Warped through subspace to slip node 21665 | -1/Command | Discovered new exit (range 5) 21676 | -1/Command | Entered Access_0 21676 | -1/Access_0 | Accompanied by 6 allies 21677 | -1/Access_0 | Met Architect 21679 | -1/Access_0 | Architect warped through subspace 21689 | -1/Access_0 | Destroyed A8 21703 | -1/Access_0 | Found Core Regenerator 21709 | -1/Access_0 | Architect warped through subspace 21724 | -1/Access_0 | Found Hpw. Transdimensional Reconstructor 21732 | -1/Access_0 | Architect warped through subspace 21741 | -1/Access_0 | Subspace Access Node disabled 21744 | -1/Access_0 | Spotted Enhanced Programmer 21758 | -1/Access_0 | Spotted Enhanced Programmer 21759 | -1/Access_0 | Destroyed Enhanced Programmer 21760 | -1/Access_0 | A6 warped into view 21779 | -1/Access_0 | Architect warped through subspace 21793 | -1/Access_0 | Destroyed A6 21804 | -1/Access_0 | Architect warped through subspace 21805 | -1/Access_0 | Lost 4 allies 21817 | -1/Access_0 | Lost 3 parts (3u) 21830 | -1/Access_0 | Architect warped through subspace 21866 | -1/Access_0 | Subspace Access Node disabled 21879 | -1/Access_0 | Architect warped through subspace 21914 | -1/Access_0 | Architect warped through subspace 21927 | -1/Access_0 | Found Thermal Barrier 21947 | -1/Access_0 | Architect warped through subspace 21958 | -1/Access_0 | Spotted Enhanced Programmer 21973 | -1/Access_0 | Destroyed Enhanced Programmer 21978 | -1/Access_0 | Subspace Access Node disabled 21986 | -1/Access_0 | Subspace Access Node disabled 21987 | -1/Access_0 | Spotted Enhanced Programmer 21997 | -1/Access_0 | Destroyed Enhanced Programmer 22001 | -1/Access_0 | Found Exp. Target Analyzer 22020 | -1/Access_0 | Lost 6 parts (4n1u1w) 22037 | -1/Access_0 | Spotted Enhanced Programmer 22079 | -1/Access_0 | Destroyed Architect 22080 | -1/Access_0 | Architect triggered a singularity event 22080 | -1/Access_0 | System corruption reached 10% 22082 | -1/Access_0 | Extracted unknown sensor trigger ID from Architect's data core 22083 | -1/Access_0 | Found Hpw. Transdimensional Reconstructor 22084 | -1/Access_0 | Warped through subspace to slip node 22084 | -1/Access_0 | Discovered exit to Surface (range 8) 22088 | *** | Escaped singularity! Last Messages --------------- 22079_ Architect destroyed. 22079_ Cld. Antigrav System destroyed. 22080_ A0_COM: Initiating irreversible singularity event. Goodbye. 22081_ A0_COM: 10. 22082_ A0_COM: 9. 22082_ Acquired 58 matter. 22082_ Acquired data core, extracted unknown sensor trigger ID. 22083_ A0_COM: 8. 22083_ Acquired Hpw. Transdimensional Reconstructor. 22084_ A0_COM: 7. 22084_ Warped through subspace, drawn to slip node. 22084_ EXIT=FOUND: SURFACE 22085_ A0_COM: 6. 22086_ A0_COM: 5. 22087_ A0_COM: 4. 22088_ A0_COM: 3. Map ----- +----------------------------------------------------+ | | | | | | | | | | | | | | | | | | | | | | | | | | | | | | | | | ?????????????????????????????????????????????????? | | ?????????????????????????????????????????????????? | | ?????????????????????????????????????????????????? | | ?????????????????????????????????????????????????? | | ?????????????????????????????????????????????????? | | ?????????????????????????????????????????????????? | | ????????????????????????###??????????????????????? | | ???????????????????????## ##?????????????????????? | | ???????????????????????# #?????????????????????? | | ???????????????????????# @ #?????????????????????? | | ??????????????????????## #?????????????????????? | | ??????????????????????# #?????????????????????? | | ??????????????????????# ##?????????????????????? | | ??????????????????????## #?????????????????????? | | ??????????????????????# #?????????????????????? | | ??????????????????????# ##?????????????????????? | | ??????????????????????# < #?????????????????????? | | ??????????????????????# ##?????????????????????? | | ??????????????????????## #??????????????????????? | | ???????????????????????####??????????????????????? | | ?????????????????????????????????????????????????? | | ?????????????????????????????????????????????????? | | ?????????????????????????????????????????????????? | | ?????????????????????????????????????????????????? | | ?????????????????????????????????????????????????? | | ?????????????????????????????????????????????????? | | ?????????????????????????????????????????????????? | | ?????????????????????????????????????????????????? | | ?????????????????????????????????????????????????? | | ?????????????????????????????????????????????????? | | ?????????????????????????????????????????????????? | | ?????????????????????????????????????????????????? | | ?????????????????????????????????????????????????? | | ?????????????????????????????????????????????????? | +----------------------------------------------------+ Best States ------------- Heat Dissipation 52 Energy Generation 99 Energy Capacity 1520 Matter Stores 1050 Matter Capacity 1050 Sight Range 24 Robot Scan Range 20 Terrain Scan Density 10 Jamming Range 16 Cloak Strength 6 Additional Mass Support 30 Armor Coverage 1300 Resistance: TH 50 Point Defense Rating 480 Projectile Deflection 15 Melee Speed Boost 50 Phase Shifting 15 Evasion (%) 94 Targeting Accuracy 30 Launcher Accuracy 60 Target Analysis 10 Core Analysis 8 Recoil Reduction 3 Offensive Hacking 50 Defensive Hacking 14 Item Schematics ----------------- Nanoactuators | -6/Factory | Hacked Imp. Corruption Screen | -6/Zion | Archive Adv. Sensor Array | -6/Zion | Archive Imp. Dynamic Insulation System | -6/Zion | Archive Drone Bay | -6/Zion | Archive Mass Driver | -6/Zion | Archive Flexi-carbon Leg | -6/Zion | Archive Hvy. Flak Cannon | -6/Zion | Archive HERF Cannon | -6/Zion | Archive Lrn. Tractor Beam | -6/Zion | Archive Adv. Terrain Scanner | -6/Zion | Archive Imp. Thermal Shield | -6/Zion | Archive Thermal Shield | -6/Zion | Archive Imp. Remote Datajack | -6/Zion | Archive Imp. Trap Scanner | -6/Zion | Archive Hyp. Mass Driver | -6/Zion | Archive Adv. Reaction Control System | -5/Factory | Hacked Assault Drone Bay | -5/Zhirov | Free Exp. Heat Sink | -5/Zhirov | Free Exp. Optical Array | -5/Zhirov | Free Imp. Arc Thrower | -5/Zhirov | Free Com. Mass Driver | -3/Protoforge | Archive Gravity Neutralizer | -3/Protoforge | Archive Adv. Dynamic Insulation System | -3/Protoforge | Archive Electron Diverter | -3/Protoforge | Archive Adv. Energy Well | -3/Protoforge | Archive Exp. Power Amplifier | -3/Protoforge | Archive Adv. Matter Compressor | -3/Protoforge | Archive Hvy. Antimatter Reactor | -2/Testing | Archive Diametric Drive | -2/Testing | Archive Exp. Biometal Leg | -2/Testing | Archive Exp. Cooling System | -2/Testing | Archive Hds. Centrium Leg | -2/Testing | Archive Cld. Antigrav System | -2/Testing | Archive Centrium Light Armor Plating | -2/Testing | Archive Imp. Energy Well | -2/Testing | Archive Adv. Plasma Rifle | -2/Testing | Archive Quantum Shading Machine | -2/Testing | Archive Com. Linear Accelerator | -2/Testing | Archive Cld. Field Propulsion Drive | -2/Testing | Archive Femtoactuators | -2/Testing | Archive Exp. Coolant Injector | -2/Testing | Archive Robot Schematics ------------------ T-07 Excavator | -6/Zion | Archive M-14 Sweeper | -6/Zion | Archive A-02 Transporter | -6/Zion | Archive X-82 Rainmaker | -6/Zion | Archive B-74 Champion | -3/Protoforge | Archive Y-72 Warden | -3/Protoforge | Archive A-27 Freighter | -3/Protoforge | Archive G-73 Enforcer | -2/Testing | Archive A-15 Conveyor | -2/Testing | Archive C-65 Expert | -2/Testing | Archive Fabricated ------------ Nothing Repaired ---------- Imp. Assault Rifle | 43% | -10/Materials Imp. Assault Rifle | 27% | -9/Materials Imp. Assault Rifle | 51% | -9/Materials Lgt. Armor Plating | 64% | -9/Materials Med. Armor Plating | 23% | -9/Storage Studied --------- Lgt. Treads | -9/Materials | Hacked Lgt. Nuclear Core | -6/Factory | Hacked Lgt. Fission Core | -6/Factory | Hacked Lrn. Missile Launcher | -6/Factory | Hacked Enh. Gauss Cannon | -5/Factory | Hacked Nuclear Pulse Array | -4/Factory | Hacked Impulse Thruster | -4/Factory | Hacked Impulse Thruster Array | -3/Quarantine | Hacked Mic. Antimatter Reactor | -3/Quarantine | Hacked Alien Tech Used ----------------- Core Expander Integrated Reactor Sigix Broadsword Subatomic Replicator Dimensional Node Initializer Supercharged TR Transdimensional Reconstructor High-powered Transdimensional Reconstructor Achievements -------------- Bigger And Badder Infodabbler Sorry Old Pal What Happened At The End There Challenges ------------ None Game ------ Seed MasterHackingLegs Manual? 0 Play Time 07:28:33 Cumulative 355.3 hours Start 2025.10.11 @ 23:41:00 End 2025.10.13 @ 17:26:47 Sessions 5 Manual Loads 0 Difficulty Rogue Special Mode None Game No. 141 Rogue 141 Adventurer 0 Explorer 0 Win Type 6 Total 24 Types 1/2/11/0/0/1/7/0/1/1 Lore% 81 Gallery% 70 Achievement% 60 Wizard Run 0 Options --------- Layout 1 ASCII 0 Keyboard 0 Movement Arrows Keybinds 0 Fullscreen 2 Font 24/Terminus Map View 50x35 Zoom Use 0% Tactical HUD 1 Map Filters NONE Filters NONE Steam 1 RUN: 78eac8dd-e36f-4409-a927-ab9c20569bf3